{"text_format":"1","workbook":"xlsx","n_sheets":4,"sheets":["GB+Gewicht","bs Betreuung","Grundbetreuung","Tabellen"],"not_rendered":{"charts":0,"images":267,"macros":1,"external_links":0,"defined_names":5,"comments":2,"pivot_tables":0},"unopened":[],"bounds":{"document_bytes":16777216,"sheet_cells":100000,"rows_first":2000,"rows_last":500,"rows_between":2000,"halvings":0,"cell_chars":16384,"cell_head_chars":4096},"cells_cut":0,"cells_raw":0,"read":"whole","date_system":"1900"}

{"sheet":"GB+Gewicht","index":0,"n_rows":86,"n_cols":8,"rows_kept":86,"cut":false,"hidden":false,"merged":[[79,4,79,5],[85,4,85,5],[79,6,79,7],[79,2,79,3],[80,2,80,3],[82,2,82,3],[83,2,83,3],[84,2,84,3],[85,2,85,3],[84,6,84,7],[80,6,80,7],[82,6,82,7],[80,4,80,5],[82,4,82,5],[85,6,85,7],[76,0,76,1],[71,1,71,7],[72,2,75,2],[72,3,75,3],[72,4,75,4],[72,5,75,5],[72,6,75,6],[72,7,75,7],[0,2,0,7],[31,7,33,7],[35,7,36,7],[31,6,33,6],[35,3,36,3],[35,4,36,4],[35,5,36,5],[35,6,36,6],[31,2,33,2],[35,2,36,2],[29,0,29,1],[38,5,41,5],[38,6,41,6],[31,3,33,3],[31,4,33,4],[31,5,33,5],[42,1,42,7],[38,7,41,7],[30,1,30,7],[34,1,34,7],[37,1,37,7],[38,2,41,2],[38,3,41,3],[38,4,41,4],[43,6,49,6],[43,7,49,7],[43,2,49,2],[43,3,49,3],[43,4,49,4],[43,5,49,5],[64,1,64,7],[51,2,53,2],[51,3,53,3],[51,4,53,4],[51,5,53,5],[51,6,53,6],[55,2,58,2],[55,5,58,5],[55,6,58,6],[60,2,63,2],[59,1,59,7],[60,3,63,3],[60,4,63,4],[60,5,63,5],[60,6,63,6],[50,1,50,7],[54,1,54,7],[55,7,58,7],[51,7,53,7],[55,4,58,4],[87,4,87,7],[65,6,70,6],[65,7,70,7],[65,2,70,2],[65,3,70,3],[65,4,70,4],[65,5,70,5],[83,4,83,5],[84,4,84,5],[83,6,83,7],[4,3,4,4],[83,0,83,1],[84,0,84,1],[85,0,85,1],[5,2,5,7],[79,0,79,1],[80,0,80,1],[82,0,82,1],[60,7,63,7],[55,3,58,3]]}
[null,"Unternehmen:"]
[]
[null,"Anzahl der Beschäftigten insgesamt:"]
[]
[null,"Einstufung der Betriebsart gem. WZ-Kode:",null,"Gefährdung:",null,"gering",{"$f":"IF(F5=\"hoch\",G26,IF(F5=\"mittel\",G27,IF(F5=\"gering\",G28,\"Ungültige WZ\")))","v":"Gruppe III"},{"$f":"IF(F5=\"hoch\",H26,IF(F5=\"mittel\",H27,IF(F5=\"gering\",H28,\"Ungültige WZ\")))","v":0.5}]
[]
[]
[null,null,"in Std.","in %"]
[null,"Grundbetreuung BA & SiFa in Std. nach WZ-Schlüssel",{"$f":"SUM(C3*H5)","v":0}]
[null,"Grundbetreuung BA in Std.",{"$f":"F77","v":0},{"$f":"IF(C77<>100,\"Fehler in der Gewichtung\",IF(SUM(D32:E76)<>900,\"Fehler Aufteilung BA/SiFa\",IF(C10*100/C9<40,\"BA mindestens 40 %\",ROUND(C10*100/C9,1))))","v":{"$error":"#DIV/0!"}}]
[null,"Grundbetreuung SiFa in Std.",{"$f":"G77","v":0},{"$f":"IF(C77<>100,\"Fehler in der Gewichtung\",IF(SUM(D32:E76)<>900,\"Fehler Aufteilung BA/SiFa\",IF(C11*100/C9<40,\"SiFa mindestens 40%\",ROUND(C11*100/C9,1))))","v":{"$error":"#DIV/0!"}}]
[]
[null,null,"in Std.","in %"]
[null,"Betriebsspezifische Betreuung BA & SiFa in Std. ",{"$f":"SUM('bs Betreuung'!C5:C6)","v":0}]
[null,"Betriebsspezifische Betreuung  BA in Std.",{"$f":"'bs Betreuung'!C5","v":0},{"$f":"ROUND(C15*100/C14,1)","v":{"$error":"#DIV/0!"}}]
[null,"Betriebsspezifische Betreuung  SiFa in Std.",{"$f":"'bs Betreuung'!C6","v":0},{"$f":"ROUND(C16*100/C14,1)","v":{"$error":"#DIV/0!"}}]
[]
[null,null,"in Std.","in %"]
[null,"Gesamtbetreuung (GB + b/s. Betreuung) BA + SiFa  ",{"$f":"SUM(C20:C21)","v":0}]
[null,"Gesamtbetreuung (GB + b/s. Betreuung) BA ",{"$f":"C10+C15","v":0},{"$f":"ROUND(C20*100/C19,1)","v":{"$error":"#DIV/0!"}}]
[null,"Gesamtbetreuung (GB + b/s. Betreuung) SiFa ",{"$f":"C11+C16","v":0},{"$f":"ROUND(C21*100/C19,1)","v":{"$error":"#DIV/0!"}}]
[]
[null,null,null,null,null,"Erläuterungen:"]
[]
[null,null,null,null,null,"Gefähr- dung:","Gruppe:","Einsatzstd. / Jahr je Beschäft.:"]
[null,null,null,null,null,"hoch","Gruppe I",2.5]
[null,null,null,null,null,"mittel","Gruppe II",1.5]
[null,null,null,null,null,"gering","Gruppe III",0.5]
[]
["Aufgabenfelder",null,"Gewichtung in %","Einsatz BA in %","Einsatz SiFa in %","Einsatz BA in Std.","Einsatz SiFa in Std.","Einsatz BA + SiFa in Std."]
[1,"Unterstützung bei der Gefährdungsbeurteilung (Beurteilung der Arbeitsbedingungen)"]
["1.1","\n Unterstützung bei der Implementierung eines Gesamtkonzeptes zur Gefährdungsbeurteilung",20,45,55,{"$f":"H32*D32/100","v":0},{"$f":"H32*E32/100","v":0},{"$f":"C9*C32/100","v":0}]
["1.2","Unterstützung bei der Durchführung der Gefährdungsbeurteilung"]
["1.3","Beobachtung der gelebten Praxis und Auswertung der Gefährdungsbeurteilung"]
["2","Unterstützung bei grundlegenden Maßnahmen der Arbeitsgestaltung Verhältnisprävention"]
["2.1","Eigeninitiatives Handeln zur Verhältnisprävention an bestehenden Arbeitssystemen",20,45,55,{"$f":"H36*D36/100","v":0},{"$f":"H36*E36/100","v":0},{"$f":"C9*C36/100","v":0}]
["2.2","Eigeninitiatives Handeln zur Verhältnisprävention bei Veränderung der Arbeitsbedingungen"]
["3","Unterstützung bei grundlegenden Maßnahmen der Arbeitsgestaltung\nVerhaltensprävention"]
["3.1","Unterstützung bei Unterweisungen, Betriebsanweisungen, Qualifizierungsmaßnahmen",20,40,60,{"$f":"H39*D39/100","v":0},{"$f":"H39*E39/100","v":0},{"$f":"C9*C39/100","v":0}]
["3.2","Motivieren zum sicherheits- und gesundheitsgerechten Verhalten"]
["3.3","Information und Aufklärung"]
["3.4","Kollektive arbeitsmedizinische Beratung der Beschäftigten"]
["4","Unterstützung bei der Schaffung einer geeigneten Organisation und Integration in die Führungstätigkeit"]
["4.1","\nIntegration des Arbeitsschutzes in die Aufbauorganisation",10,40,60,{"$f":"H44*D44/100","v":0},{"$f":"H44*E44/100","v":0},{"$f":"C9*C44/100","v":0}]
["4.2","Integration des Arbeitsschutzes in die Unternehmensführung"]
["4.3","Beratung zu erforderlichen Ressourcen zur Umsetzung der Arbeitsschutzmaßnahmen"]
["4.4","Kommunikation und Information sichern "]
["4.5","Berücksichtung der Arbeitsschutzbelange in betrieblichen Prozessen"]
["4.6","Betriebliche arbeitsschutzspezifische Prozesse organisieren"]
["4.7","Ständige Verbesserung sicherstellen"]
["5","Untersuchung nach Ereignissen (Unfallstatistik auswerten)"]
["5.1","Untersuchungen von Ereignissen, Ursachenanalysen und deren Auswertungen",5,30,70,{"$f":"H52*D52/100","v":0},{"$f":"H52*E52/100","v":0},{"$f":"C9*C52/100","v":0}]
["5.2","Ermitteln von Unfallschwerpunkten sowie Schwerpunkten arbeitsbedingter Erkrankungen"]
["5.3","Verbesserungsvorschläge"]
["6","Allgemeine Beratung von Arbeitgebern und Führungskräften, betrieblichen Interessenvertretungen, Beschäftigten"]
["6.1","Beratung zu Rechtsgrundlagen, Stand der Technik und Arbeitsmedizin, wissenschaftlichen\nErkenntnissen",5,30,70,{"$f":"H56*D56/100","v":0},{"$f":"H56*E56/100","v":0},{"$f":"C9*C56/100","v":0}]
["6.2","Beantwortung von Anfragen"]
["6.3","Verbreitung der Information im Unternehmen, einschließlich Teambesprechungen"]
["6.4","Externe Beratung zu speziellen Problemen des Arbeitsschutzes organisieren"]
["7","Erstellung von Dokumentationen, Erfüllung von Meldepflichten"]
["7.1","Unterstützung bei der Erstellung von Dokumentationen",10,20,80,{"$f":"H61*D61/100","v":0},{"$f":"H61*E61/100","v":0},{"$f":"C9*C61/100","v":0}]
["7.2","Unterstützung bei der Erfüllung von Meldepflichten gegenüber den zuständigen\nBehörden und Unfallversicherungsträgern"]
["7.3","Dokumentation von Vorschlägen an den Arbeitgeber einschließlich Angabe des\njeweiligen Umsetzungsstandes"]
["7.4","Dokumentation zur eigenen Tätigkeit und zur Inanspruchnahme der Einsatzzeiten"]
["8","Mitwirken in betrieblichen Besprechungen"]
["8.1","Direkte persönliche Beratung von Arbeitgebern",5,50,50,{"$f":"H66*D66/100","v":0},{"$f":"H66*E66/100","v":0},{"$f":"C9*C66/100","v":0}]
["8.2","Teilnahme an Dienstgesprächen des Arbeitgebers mit seinen Führungskräften"]
["8.3","Teilnahme an Besprechungen der betrieblichen Beauftragten entsprechend §§ 9,\n10 und 11 Arbeitssicherheitsgesetz"]
["8.4","Teilnahme an sonstigen Besprechungen, einschließlich Betriebsversammlung"]
["8.5","Nutzung eines ständigen Kontaktes mit Führungskräften"]
["8.6","Sitzung des Arbeitsschutzausschusses"]
["9","Selbstorganisation"]
["9.1","Ständige Fortbildung organisieren (Aktualisierung und Erweiterung)",5,50,50,{"$f":"H73*D73/100","v":0},{"$f":"H73*E73/100","v":0},{"$f":"C9*C73/100","v":0}]
["9.2","Wissensmanagement entwickeln und nutzen"]
["9.3","Erfassen und Aufarbeiten von Hinweisen der Beschäftigten"]
["9.4","Erfahrungsaustausch insbesondere mit den Unfallversicherungsträgern und den\nzuständigen Behörden nutzen"]
["Einsatzzeiten gesamt",null,{"$f":"C32+C36+C39+C44+C52+C56+C61+C66+C73","v":100},null,null,{"$f":"F32+F36+F39+F44+F52+F56+F61+F66+F73","v":0},{"$f":"G32+G36+G39+G44+G52+G56+G61+G66+G73","v":0},{"$f":"SUM(F77:G77)","v":0}]
[]
[]
["Für den Unternehmer / das Unternehmen für gültig erklärt:",null,"Kenntnisnahme Betriebsrat:",null,"Kenntnisnahme BA:",null,"Kenntnisnahme FaSi:"]
[]
[]
[]
[]
[]
["(Unterschrift / Datum)",null,"(Unterschrift / Datum)",null,"(Unterschrift / Datum)",null,"(Unterschrift / Datum)"]

{"sheet":"bs Betreuung","index":1,"n_rows":596,"n_cols":8,"rows_kept":596,"cut":false,"hidden":false,"merged":[[594,0,594,7],[519,0,519,7],[543,0,543,7],[544,0,544,7],[593,0,593,7],[569,2,572,2],[569,3,572,3],[551,2,557,2],[551,3,557,3],[558,2,562,2],[518,0,518,7],[470,2,473,2],[497,0,497,3],[497,4,497,7],[474,3,476,3],[481,7,482,7],[481,3,482,3],[498,6,498,7],[435,0,435,7],[436,0,436,7],[416,0,417,1],[422,2,424,2],[422,3,424,3],[425,2,426,2],[425,3,426,3],[433,0,433,1],[434,0,434,1],[422,6,424,6],[381,0,381,7],[367,7,368,7],[370,7,372,7],[361,7,363,7],[370,2,372,2],[361,3,363,3],[370,3,372,3],[367,2,368,2],[367,3,368,3],[373,6,374,6],[303,2,306,2],[303,3,306,3],[299,3,302,3],[294,2,298,2],[299,2,302,2],[289,2,289,3],[257,0,257,7],[194,3,195,3],[219,2,220,2],[177,2,178,2],[177,3,178,3],[182,4,182,5],[183,2,184,2],[70,0,70,7],[71,0,71,7],[146,0,146,7],[147,0,147,7],[75,0,76,1],[77,0,77,1],[77,4,77,5],[83,2,86,2],[83,3,86,3],[97,2,100,2],[271,6,273,6],[271,7,273,7],[483,6,484,6],[483,7,484,7],[425,6,426,6],[425,7,426,7],[428,6,430,6],[428,7,430,7],[456,6,457,6],[454,6,455,6],[595,0,595,5],[37,4,38,5],[37,2,37,3],[37,0,38,1],[522,0,522,3],[522,4,522,7],[504,2,505,2],[504,3,505,3],[517,0,517,1],[387,2,388,2],[269,6,270,6],[387,3,388,3],[393,2,394,2],[393,3,394,3],[390,2,392,2],[370,6,372,6],[390,3,392,3],[361,6,363,6],[367,6,368,6],[294,3,298,3],[390,7,392,7],[399,7,400,7],[418,2,420,2],[418,3,420,3],[415,4,415,7],[393,6,394,6],[393,7,394,7],[411,0,411,7],[412,0,412,7],[415,0,415,3],[403,2,404,2],[416,2,416,3],[414,1,414,7],[403,7,404,7],[399,6,400,6],[399,2,400,2],[403,3,404,3],[416,6,416,7],[269,2,270,2],[269,3,270,3],[271,2,273,2],[271,3,273,3],[396,2,398,2],[396,3,398,3],[284,0,284,7],[285,0,285,7],[325,0,325,7],[326,0,326,7],[48,2,50,2],[48,3,50,3],[51,2,54,2],[51,3,54,3],[55,3,56,3],[57,2,58,2],[563,2,565,2],[563,3,565,3],[566,2,568,2],[566,3,568,3],[61,6,66,6],[245,2,248,2],[245,3,248,3],[291,2,293,2],[291,3,293,3],[105,2,107,2],[401,2,402,2],[401,3,402,3],[413,0,413,7],[558,3,562,3],[451,6,453,6],[451,7,453,7],[463,0,463,7],[451,2,453,2],[451,3,453,3],[458,2,459,2],[587,2,589,2],[587,3,589,3],[573,2,574,2],[573,3,574,3],[575,2,576,2],[575,3,576,3],[577,2,586,2],[577,3,586,3],[97,3,100,3],[87,2,88,2],[87,3,88,3],[26,2,28,2],[26,3,28,3],[39,2,41,2],[39,3,41,3],[36,0,36,3],[34,0,34,7],[30,4,31,5],[30,0,30,1],[31,0,31,1],[32,0,32,7],[504,6,505,6],[504,7,505,7],[465,0,465,7],[468,6,468,7],[474,2,476,2],[481,6,482,6],[481,2,482,2],[531,2,532,2],[531,3,532,3],[527,2,528,2],[527,3,528,3],[529,2,530,2],[529,3,530,3],[479,7,480,7],[474,7,476,7],[525,2,526,2],[525,3,526,3],[483,3,484,3],[523,2,523,3],[520,0,520,7],[500,6,501,6],[491,0,491,1],[500,2,501,2],[456,2,457,2],[456,3,457,3],[479,2,480,2],[479,3,480,3],[477,2,478,2],[477,3,478,3],[458,3,459,3],[516,0,516,1],[516,4,517,5],[502,2,503,2],[502,3,503,3],[500,7,501,7],[483,2,484,2],[500,3,501,3],[496,1,496,7],[492,0,492,7],[493,0,493,7],[445,2,447,2],[448,2,449,2],[448,3,449,3],[498,0,499,1],[498,2,498,3],[467,0,467,3],[468,0,469,1],[468,2,468,3],[490,0,490,1],[470,3,473,3],[259,0,259,7],[193,4,193,5],[254,4,254,5],[261,0,261,3],[261,4,261,7],[258,0,258,7],[255,0,255,1],[194,7,195,7],[217,4,218,5],[193,0,193,1],[255,4,256,5],[173,2,176,2],[173,3,176,3],[173,6,176,6],[219,3,220,3],[217,2,217,3],[216,0,216,3],[244,0,244,1],[217,0,218,1],[55,2,56,2],[43,2,47,2],[43,3,47,3],[115,2,115,3],[183,3,184,3],[108,2,110,2],[108,3,110,3],[132,2,134,2],[132,3,134,3],[148,0,148,7],[12,2,13,2],[12,3,13,3],[14,2,15,2],[14,3,15,3],[78,2,82,2],[21,3,22,3],[24,2,25,2],[24,3,25,3],[57,3,58,3],[59,2,60,2],[17,3,19,3],[17,2,19,2],[21,2,22,2],[577,6,586,6],[78,6,82,6],[108,6,110,6],[294,6,298,6],[494,0,494,7],[495,1,495,7],[575,7,576,7],[577,7,586,7],[551,6,557,6],[551,7,557,7],[566,6,568,6],[563,6,565,6],[563,7,565,7],[566,7,568,7],[573,6,574,6],[573,7,574,7],[575,6,576,6],[262,0,263,1],[78,7,82,7],[83,6,86,6],[83,7,86,7],[87,6,88,6],[87,7,88,7],[150,0,150,3],[150,4,150,7],[132,7,134,7],[262,2,262,3],[445,3,447,3],[108,7,110,7],[294,7,298,7],[245,6,248,6],[245,7,248,7],[291,6,293,6],[291,7,293,7],[289,6,289,7],[286,0,286,7],[256,0,256,1],[490,4,491,5],[442,2,443,2],[442,3,443,3],[549,6,549,7],[569,6,572,6],[569,7,572,7],[558,6,562,6],[558,7,562,7],[454,2,455,2],[454,3,455,3],[439,0,439,3],[440,0,441,1],[454,7,455,7],[527,7,528,7],[456,7,457,7],[458,6,459,6],[458,7,459,7],[477,6,478,6],[477,7,478,7],[467,4,467,7],[548,4,548,7],[531,6,532,6],[546,1,546,7],[547,1,547,7],[422,7,424,7],[438,1,438,7],[440,6,440,7],[440,4,441,5],[439,4,439,7],[437,0,437,7],[299,6,302,6],[299,7,302,7],[303,6,306,6],[303,7,306,7],[587,6,589,6],[587,7,589,7],[442,6,443,6],[442,7,443,7],[445,6,447,6],[445,7,447,7],[365,6,366,6],[365,7,366,7],[359,6,359,7],[355,0,355,7],[332,2,333,2],[332,3,333,3],[365,2,366,2],[365,3,366,3],[361,2,363,2],[24,7,25,7],[21,6,22,6],[35,0,35,7],[173,7,176,7],[265,6,268,6],[265,7,268,7],[183,6,184,6],[177,7,178,7],[216,4,216,7],[244,4,244,5],[390,6,392,6],[57,6,58,6],[332,7,333,7],[57,7,58,7],[17,7,19,7],[26,6,28,6],[26,7,28,7],[39,6,41,6],[39,7,41,7],[37,6,37,7],[359,4,360,5],[357,1,357,7],[358,4,358,7],[17,6,19,6],[401,6,402,6],[401,7,402,7],[375,6,376,6],[375,7,376,7],[387,6,388,6],[387,7,388,7],[36,4,36,7],[33,0,33,7],[48,6,50,6],[48,7,50,7],[354,0,354,7],[358,0,358,3],[183,7,184,7],[177,6,178,6],[219,6,220,6],[330,6,330,7],[51,6,54,6],[51,7,54,7],[55,6,56,6],[55,7,56,7],[332,6,333,6],[12,7,13,7],[14,7,15,7],[14,6,15,6],[43,6,47,6],[43,7,47,7],[59,6,60,6],[59,7,60,7],[61,7,66,7],[73,0,73,7],[74,0,74,3],[68,0,68,1],[69,0,69,1],[59,3,60,3],[61,2,66,2],[61,3,66,3],[97,7,100,7],[105,7,107,7],[101,6,104,6],[101,7,104,7],[97,6,100,6],[74,4,74,7],[75,4,76,5],[75,6,75,7],[78,3,82,3],[164,0,164,1],[164,4,165,5],[165,0,165,1],[151,0,152,1],[96,0,96,1],[114,0,114,3],[151,2,151,3],[151,4,152,5],[96,4,96,5],[171,6,171,7],[153,6,155,6],[170,0,170,3],[170,4,170,7],[171,4,172,5],[159,3,163,3],[153,7,155,7],[166,0,166,7],[167,0,167,7],[283,0,283,1],[289,0,290,1],[260,0,260,7],[171,0,172,1],[328,1,328,7],[323,0,323,1],[323,4,324,5],[327,0,327,7],[324,0,324,1],[171,2,171,3],[287,1,287,7],[265,2,268,2],[265,3,268,3],[269,7,270,7],[289,4,290,5],[169,0,169,7],[262,4,263,5],[262,6,262,7],[282,0,282,1],[282,4,283,5],[182,0,182,1],[217,6,217,7],[232,0,232,1],[232,4,232,5],[206,0,206,1],[206,4,206,5],[194,2,195,2],[194,6,195,6],[219,7,220,7],[529,6,530,6],[529,7,530,7],[531,7,532,7],[440,2,440,3],[525,6,526,6],[525,7,526,7],[527,6,528,6],[448,6,449,6],[448,7,449,7],[468,4,469,5],[418,6,420,6],[418,7,420,7],[428,2,430,2],[428,3,430,3],[416,4,417,5],[548,0,548,3],[523,6,523,7],[521,1,521,7],[523,0,524,1],[523,4,524,5],[373,7,374,7],[433,4,434,5],[399,3,400,3],[68,4,69,5],[131,4,131,5],[329,0,329,3],[330,0,331,1],[330,2,330,3],[352,0,352,1],[351,0,351,1],[144,0,144,1],[144,4,145,5],[72,0,72,7],[115,0,116,1],[145,0,145,1],[75,2,75,3],[101,2,104,2],[115,4,116,5],[101,3,104,3],[132,6,134,6],[330,4,331,5],[375,2,376,2],[375,3,376,3],[373,2,374,2],[373,3,374,3],[351,4,352,5],[356,1,356,7],[359,0,360,1],[359,2,359,3],[353,0,353,7],[385,4,386,5],[385,6,385,7],[378,0,378,1],[378,4,379,5],[379,0,379,1],[382,0,382,7],[384,0,384,3],[385,0,386,1],[385,2,385,3],[380,0,380,7],[288,0,288,3],[288,4,288,7],[383,1,383,7],[409,0,409,1],[409,4,410,5],[410,0,410,1],[384,4,384,7],[396,6,398,6],[396,7,398,7],[403,6,404,6],[131,0,131,1],[115,6,115,7],[470,6,473,6],[470,7,473,7],[474,6,476,6],[464,0,464,7],[461,0,461,1],[461,4,462,5],[462,0,462,1],[466,1,466,7],[153,2,155,2],[153,3,155,3],[156,2,158,2],[156,3,158,3],[114,4,114,7],[105,6,107,6],[151,6,151,7],[149,0,149,7],[105,3,107,3],[591,0,591,1],[591,4,592,5],[592,0,592,1],[541,0,541,1],[541,4,542,5],[542,0,542,1],[545,0,545,7],[549,0,550,1],[549,2,549,3],[549,4,550,5],[159,2,163,2],[156,6,158,6],[0,0,0,3],[2,0,2,1],[4,0,4,1],[5,0,5,1],[2,2,2,7],[4,2,4,3],[5,2,5,3],[7,1,7,7],[8,1,8,7],[21,7,22,7],[24,6,25,6],[9,1,9,3],[9,5,9,7],[10,2,10,3],[10,6,10,7],[10,0,11,1],[10,4,11,5],[12,6,13,6],[156,7,158,7],[159,6,161,6],[159,7,161,7],[596,5,596,7],[498,4,499,5],[502,6,503,6],[502,7,503,7],[479,6,480,6],[168,0,168,7],[329,4,329,7]]}
["Leistungsermittlung"]
[]
["Unternehmen:"]
[]
["Gesamtleistung BA in Std.:",null,{"$f":"SUM(G32,G70,G146,G166,G257,G284,G325,G353,G380,G411,G435,G463,G492,G518,G543,G593)","v":0}]
["Gesamtleistung SiFa in Std.:",null,{"$f":"SUM(H32,H70,H146,H166,H257,H284,H325,H353,H380,H411,H435,H463,H492,H518,H543,H593)","v":0}]
[]
["1","Regelmäßig vorliegende betriebsspezifische Unfall- und Gesundheitsgefahren, Erfordernisse zur menschengerechten Arbeitsgestaltung"]
["1.1","Besondere Tätigkeiten"]
[null,"Auslösekriterien zur b/s Betreuung",null,null,null,"Aufwandskriterien"]
["Auslösekriterien zur b/s Betreuung",null,"Trifft zu",null,"Beschreibung der Leistungen\ninsgesamt für Auslösekriterien a) bis j)",null,"Personalaufwand   in Std."]
[null,null,"ja","nein",null,null,"BA","SiFa"]
["a)","Feuerarbeiten in brand- und explosions-",null,null,"•","Ermitteln und Analysieren der spezifischen Gefähr-\n\n\n \n\n\n• \n• "]
[null,"gefährdeten Bereichen",null,null,null,"dungssituation (Gefährdungsfaktoren, Quellen,"]
["b)","Gefährliche Arbeiten an unter Druck ",null,null,null,"gefahrbringende Bedingungen, Wechselwirkungen)"]
[null,"stehenden Anlagen",null,null,"•       ","Spezifische tätigkeitsbezogene  Risikobeurtei-"]
["c)","Arbeiten in gasgefährdeten Bereichen",null,null,null,"lungen"]
["d) ","Andere gefährliche Arbeiten",null,null,"•       ","Ermitteln des relevanten Stands der Technik und "]
[null,"(Schweißen in engen Räumen, Spreng- ",null,null,null,"Arbeitsmedizin"]
[null,"arbeiten, Fällen von Bäumen, ...)",null,null,"•","Beratung zum Festlegen von Soll-Zuständen für  "]
["e)","Arbeiten unter Infektionsgefahren",null,null,null,"die ermittelten Risiken"]
["f)","Umgang mit ionisierender Strahlung, Arbeiten im ",null,null,"• ","Entwickeln von Schutzkonzepten"]
[null,"Bereich elektromagnetischer Felder",null,null,"• ","Umsetzen der Schutzkonzepte unterstützen und "]
["g)","Alleinarbeit",null,null,null,"begleiten"]
["h)","Andere Tätigkeiten, die besondere Schutz-",null,null,"• ","Durchführen von regelmäßigen Wirkungskontrollen"]
[null,"maßnahmen erfordern",null,"  ","• ","Gefährdungsbeurteilung fortschreiben"]
["i)","Tätigkeiten, die nicht typisch für den Wirt-"]
[null,"schaftszweig bzw. für das Kerngeschäft des "]
[null,"Betriebs sind"]
["j) ","…"]
["Betriebsspezifische Betreuung erforderlich:",null,"ja","nein","Personalaufwand in Stunden\nfür das Aufgabenfeld insgesamt\n(siehe Teilschritt 2.2):"]
["Bei mindestens einem zutreffenden\n„Ja“ ist betriebsspezifische Betreuung erforderlich",null,null,null,null,null,{"$f":"SUM(G13:G30)","v":0},{"$f":"SUM(H13:H30)","v":0}]
["Bemerkungen:"]
[]
[]
["1.2 Arbeitsplätze und Arbeitsstätten, die besondere Risiken aufweisen"]
["Auslösekriterien zur b/s Betreuung",null,null,null,"Aufwandskriterien"]
["Auslösekriterien zur b/s Betreuung",null,"Trifft zu",null,"Beschreibung der Leistungen\ninsgesamt für Auslösekriterien a) bis j)",null,"Personalaufwand   in Std."]
[null,null,"ja","nein",null,null,"BA","SiFa"]
["a) ","Vielzahl von unterschiedlichen Quellen bzw. ",null,null,"•","Ermitteln und Analysieren der spezifischen Gefähr-\n\n\n \n\n\n• \n• "]
[null,"besondere gefahrbringende Bedingungen für ",null,null,null,"dungssituation (Gefährdungsfaktoren, Quellen, ge- "]
[null,"spezifische Gefährdungen (z. B. Lärmquellen)",null,null,null,"fahrbringende Bedingungen, Wechselwirkungen, ...)"]
["b) ","Vielzahl von unterschiedlichen Gefahrstoffen",null,null,"•       ","Spezifische Risikobeurteilungen für die Arbeits-"]
["c)","Arbeitsplätze, die besondere Schutzmaßnah-  ",null,null,null,"plätze, -stätten"]
[null,"men bei Tätigkeiten mit krebserzeugenden, ",null,null,"•       ","Beratung zum Festlegen von Soll-Zuständen  "]
[null,"erbgutverändernden und fruchtbarkeits-",null,null,"•","Ermitteln des relevanten Stands der Technik und "]
[null,"gefährdenden Gefahrstoffen gemäß",null,null,null,"Arbeitsmedizin"]
[null,"Gefahrstoffverordnung erfordern",null,null,"• ","Entwickeln von Schutzkonzepten"]
["d) ","Arbeitsplätze, an denen mit biologischen ",null,null,"• ","Umsetzen der Schutzkonzepte unterstützen und "]
[null,"Arbeitsstoffen der Risikogruppe 4 gemäß ",null,null,null,"begleiten"]
[null,"Biostoffverordnung umgegangen wird",null,null,"• ","Durchführen von regelmäßigen Wirkungskontrollen"]
["e) ","Gefährliche Arbeitsgegenstände (Abmessun-",null,null,"• ","Gefährdungsbeurteilung fortschreiben"]
[null,"gen, Gewichte, Oberflächenbeschaffenheit, "]
[null,"thermische Zustände, ...) bzw. besondere "]
[null,"gefahrbringende Bedingungen im Umgang"]
["f) ","Arbeiten an hohen Masten, Türmen und an "]
[null,"anderen hochgelegenen Arbeitsplätzen"]
["g) ","Unübersichtliches Werksgelände mit "]
[null,"innerbetrieblichem Transport und Verkehr"]
["h)","Arbeitsplätze, die besondere Schutzmaß-"]
[null,"nahmen erfordern"]
["i) ","Arbeitsplätze mit speziellen Anforderungen an"]
[null,"die Funktionsfähigkeit sowie an die Überprü-"]
[null,"fung der Wirksamkeit von Schutzmaßnahmen"]
[null,"(Beispiel: Umfangreiche Prüfungen nach"]
[null,"BetrSichV – beachte insbes. § 3 Abs. 3, sowie "]
[null,"§§ 10 und 14 ff. BetrSichV)"]
["j) ","…"]
["Betriebsspezifische Betreuung erforderlich:",null,"ja","nein","Personalaufwand in Stunden\nfür das Aufgabenfeld insgesamt\n(siehe Teilschritt 2.2):"]
["Bei mindestens einem zutreffenden\n„Ja“ ist betriebsspezifische Betreuung erforderlich",null,null,null,null,null,{"$f":"SUM(G40:G68)","v":0},{"$f":"SUM(H40:H68)","v":0}]
["Bemerkungen:"]
[]
[]
["1.3 Arbeitsaufgaben und Arbeitsorganisation mit besonderen Risiken"]
["Auslösekriterien zur b/s Betreuung",null,null,null,"Aufwandskriterien"]
["Auslösekriterien zur b/s Betreuung",null,"Trifft zu",null,"Beschreibung der Leistungen\nfür Auslösekriterien a) bis c)",null,"Personalaufwand   in Std."]
[null,null,"ja","nein",null,null,"BA","SiFa"]
["Tätigkeiten mit Potenzialen psychischer\nund physischer Fehlbeanspruchung:"]
["a) ","Anforderungen aus der Arbeitsaufgabe",null,null,"•","Analyse der Anforderungen aus Arbeitsaufgabe und "]
[null,"(hohe Aufmerksamkeitsanforderungen, große ",null,null,null," -organisation an die Psyche"]
[null,"Arbeitsmenge, besonderer Schwierigkeitsgrad, ",null,null,"•       ","Ermitteln spezifischer Quellen und Bedingungen der "]
[null,"...) mit Potenzialen psychischer Fehlbean-",null,null,null,"psychischen Belastungen im Arbeitssystem"]
[null,"spruchungen",null,null,"•       ","Beurteilen der Gesundheitsrisiken durch psychische "]
["b)","Anforderungen aus der Arbeitsorganisation ",null,null,null,"Fehlbeanspruchungen"]
[null,"(Arbeitsablauf, Störungshäufigkeiten, Art der ",null,null,"•","Beratung zum Bestimmen von Soll-Zuständen zur"]
[null,"Zusammenarbeit, ...) mit Potenzialen",null,null,null,"Vermeidung von psychischen Fehlbean-"]
[null,"psychischer Fehlbeanspruchungen",null,null,null,"spruchungen"]
["c)","Andere Anforderungen mit Potenzialen",null,null,"• ","Ermitteln des Stands der Technik und "]
[null,"psychischer Fehlbeanspruchungen",null,null,null,"Arbeitsmedizin zur menschengerechten Gestaltung "]
[null,null,null,null,null,"der Arbeitsaufgaben und der Arbeitsorganisation"]
[null,null,null,null,"• ","Unterstützen bei der Entwicklung von Gestaltungs-"]
[null,null,null,null,null,"lösungen"]
[null,null,null,null,"• ","Umsetzung der Gestaltungslösungen unterstützen"]
[null,null,null,null,null,"und begleiten"]
[null,null,null,null,"• ","Durchführen von regelmäßigen Wirkungskontrollen"]
[null,null,null,null,"• ","Gefährdungsbeurteilung fortschreiben"]
[null,null,null,null,"Beschreibung der Leistungen\nfür Auslösekriterien d) bis g)"]
["d) ","Tätigkeiten mit Potenzialen physischer",null,null,"• ","Analyse der Anforderungen an die Physis"]
[null,"Fehlbeanspruchungen:",null,null,"• ","Ermitteln spezifischer Quellen und Bedingungen"]
[null,"Manuelle Handhabung von Lasten",null,null,null,"physischer Belastungen im Arbeitssystem"]
[null,"(Hohe Risikostufe gem. Leitmerkmalmethode)",null,null,"• ","Beurteilen der Gesundheitsrisiken durch physische"]
["e) ","Tätigkeiten mit Potenzialen physischer",null,null,null,"Fehlbeanspruchungen"]
[null,"Fehlbeanspruchungen:",null,null,"• ","Beratung zum Bestimmen von Soll-Zuständen zur "]
[null,"Häufig wiederkehrende kurzzyklische",null,null,null,"Vermeidung von physischen Fehlbeanspruchungen"]
[null,"Bewegung kleiner Muskelgruppen",null,null,"• ","Ermitteln des Stands der Technik und Arbeits-"]
["f) ","Tätigkeiten mit Potenzialen physischer",null,null,null,"medizin zur Reduzierung physischer Fehlbean-"]
[null,"Fehlbeanspruchungen:",null,null,null,"spruchungen und zur menschengerechten Arbeits-"]
[null,"Arbeit in Zwangshaltungen",null,null,null,"gestaltung"]
["g)","Tätigkeiten mit Potenzialen physischer",null,null,"• ","Unterstützen bei der Entwicklung von Gestaltungs-"]
[null,"Fehlbeanspruchungen:",null,null,null,"lösungen"]
[null,"Statische Arbeit (z. B. Haltearbeit)",null,null,"• ","Umsetzung der Gestaltungslösungen unterstützen "]
[null,null,null,null,null,"und begleiten"]
[null,null,null,null,"• ","Durchführen von regelmäßigen Wirkungskontrollen"]
[null,null,null,null,"• ","Gefährdungsbeurteilung fortschreiben"]
["Auslösekriterien zur b/s Betreuung",null,null,null,"Aufwandskriterien"]
["Auslösekriterien zur b/s Betreuung",null,"Trifft zu",null,"Beschreibung der Leistungen\nfür Auslösekriterium h)",null,"Personalaufwand   in Std."]
[null,null,"ja","nein",null,null,"BA","SiFa"]
["h)","Schichtarbeit mit Nachtarbeitsanteilen",null,null,"• ","Analyse der betrieblichen Schichtarbeitssituation"]
[null,null,null,null,null,"und ihrer Bedingungen"]
[null,null,null,null,"• ","Beurteilen der gesundheitlichen Risiken der Schicht-"]
[null,null,null,null,null,"arbeit"]
[null,null,null,null,"• ","Ermitteln des relevanten Stands der Technik und "]
[null,null,null,null,null,"Arbeitsmedizin zur Schichtarbeit"]
[null,null,null,null,"• ","Beratung zum Bestimmen von Soll-Zuständen zur "]
[null,null,null,null,null,"Schichtarbeit"]
[null,null,null,null,"• ","Unterstützen bei der Entwicklung von Gestaltungs-"]
[null,null,null,null,null,"lösungen"]
[null,null,null,null,"• ","Umsetzung der Gestaltungslösungen unterstützen "]
[null,null,null,null,null,"und begleiten"]
[null,null,null,null,"• ","Durchführen von regelmäßigen Wirkungskontrollen"]
[null,null,null,null,"• ","Gefährdungsbeurteilung fortschreiben"]
[null,null,null,null,"Beschreibung der Leistungen\nfür Auslösekriterium i)"]
["i) ","Einsatz von Fremdfirmen mit einem betriebs-",null,null,"• ","Ermitteln betrieblicher Einsatzbedingungen von "]
[null,"bzw. tätigkeitsspezifischen Gefährdungs-",null,null,null,"Fremdfirmen"]
[null,"potenzial",null,null,"• ","Ermitteln der Gefährdungen und spezifischen "]
[null,null,null,null,null,"gefahrbringenden Bedingungen im Zusammenhang "]
[null,null,null,null,null,"mit dem Fremdfirmeneinsatz"]
[null,null,null,null,"• ","Risikobeurteilung zum Fremdfirmeneinsatz"]
[null,null,null,null,"• ","Unterstützen bei der Erfüllung der Auswahl-, "]
[null,null,null,null,null,"Informations- und Koordinierungspflichten, "]
[null,null,null,null,null,"Vertragsgestaltung, Erlass betrieblicher Regelungen"]
[null,null,null,null,"• ","Regelmäßige Kontrollen des Fremdfirmeneinsatzes"]
[null,null,null,null,null,"Gefährdungsbeurteilung fortschreiben"]
["j)"," ..."]
["Betriebsspezifische Betreuung erforderlich:",null,"ja","nein","Personalaufwand in Stunden\nfür das Aufgabenfeld insgesamt\n(siehe Teilschritt 2.2):"]
["Bei mindestens einem zutreffenden\n„Ja“ ist betriebsspezifische Betreuung erforderlich",null,null,null,null,null,{"$f":"SUM(G79:G96,G98:G114,G118:G131,G133:G144)","v":0},{"$f":"SUM(H79:H96,H98:H114,H118:H131,H133:H144)","v":0}]
["Bemerkungen:"]
[]
[]
["1.4 Erfordernis arbeitsmedizinischer Vorsorge"]
["Auslösekriterien zur b/s Betreuung",null,null,null,"Aufwandskriterien"]
["Auslösekriterien zur b/s Betreuung",null,"Trifft zu",null,"Beschreibung der Leistungen\ninsgesamt für Auslösekriterien a) bis c)",null,"Personalaufwand   in Std."]
[null,null,"ja","nein",null,null,"BA","SiFa"]
["a) ","Pflichtuntersuchungen erforderlich",null,null,"• ","Erkenntnisse beschaffen über die konkreten Arbeits-"]
["ð",null,null,null,null,"bedingungen"]
["ð",null,null,null,"• ","Individuelles Aufklären der Beschäftigten über die "]
["b) ","Angebotsuntersuchungen erforderlich",null,null,null,"Untersuchungen"]
["ð",null,null,null,"• ","Durchführen der Untersuchungen"]
["ð",null,null,null,"• ","Beraten der Beschäftigten zum Ergebnis"]
["c) ","Wunschuntersuchungen gefordert",null,null,"• ","Bescheinigungen erstellen"]
["ð",null,null,null,"• ","Auswerten und Ableiten von Konsequenzen für "]
["ð",null,null,null,null,"Schutzmaßnahmen"]
["ð",null,null,null,"• ","Umsetzung der Maßnahmen begleiten"]
["ð",null,null,null,"• ","Wirkungskontrollen"]
["Betriebsspezifische Betreuung erforderlich:",null,"ja","nein","Personalaufwand in Stunden\nfür das Aufgabenfeld insgesamt\n(siehe Teilschritt 2.2):"]
["Bei mindestens einem zutreffenden\n„Ja“ ist betriebsspezifische Betreuung erforderlich",null,null,null,null,null,{"$f":"SUM(G154:G164)","v":0},{"$f":"SUM(H154:H164)","v":0}]
["Bemerkungen:"]
[]
[]
["1.5 Erfordernis besonderer betriebsspezifischer Anforderungen beim Personaleinsatz"]
["Auslösekriterien zur b/s Betreuung",null,null,null,"Aufwandskriterien"]
["Auslösekriterien zur b/s Betreuung",null,"Trifft zu",null,"Beschreibung der Leistungen\nfür Auslösekriterien a) bis b)",null,"Personalaufwand   in Std."]
[null,null,"ja","nein",null,null,"BA","SiFa"]
["a) ","Anforderungen an die Qualifikation und andere",null,null,"• ","Ermitteln spezifischer personeller Anforderungen"]
[null,"personelle Voraussetzungen der Beschäftigen",null,null,"• ","Beraten und Unterstützen bei der Erfüllung beson- "]
[null,"entsprechend Forderungen in speziellen ",null,null,null,"derer Qualifikationsanforderungen und anderer "]
[null,"Vorschriften",null,null,null,"personenbezogener Anforderungen"]
["b) ","Qualifikationsanforderungen für Notfall-",null,null,"• ","Unterstützung bei der Erarbeitung betrieblicher "]
[null,"situationen",null,null,null,"Regelungen zur Beachtung personeller Anfor-"]
[null,null,null,null,null,"derungen"]
[null,null,null,null,"• ","Regelmäßige Kontrolle der Erfüllung der "]
[null,null,null,null,null,"Anforderungen"]
[null,null,null,null,"Beschreibung der Leistungen\nfür Auslösekriterium c)"]
["c) ","Personalentwicklungsmaßnahmen (PE) zum",null,null,"• ","Ermitteln des Qualifizierungsbedarfs im Arbeitsschutz"]
[null,"Arbeitsschutz",null,null,"• ","Ermitteln von betrieblichen zielgruppenspezifischen "]
[null,null,null,null,null,"PE-Maßnahmen und der Integration von Arbeits-"]
[null,null,null,null,null,"schutzbelangen"]
[null,null,null,null,"• ","Unterstützen bei der Entwicklung von PEMaßnahmen "]
[null,null,null,null,null,"zu Sicherheit und Gesundheit bei der Arbeit"]
[null,null,null,null,"• ","Hinwirken auf die Berücksichtigung von "]
[null,null,null,null,null,"Arbeitsschutzbelangen in PE-Maßnahmen"]
[null,null,null,null,"• ","Regelmäßiges Beobachten und Auswerten der "]
[null,null,null,null,null,"Wirkungen von PE-Maßnahmen"]
[null,null,null,null,"Beschreibung der Leistungen\nfür Auslösekriterium d)"]
["d) ","Besondere Personengruppen",null,null,"• ","Ermitteln besonders schutzbedürftiger Personen"]
[null,"(Schwangere, Jugendliche, ...)",null,null,"• ","Ermitteln der Gefährdungen, denen besonders "]
[null,null,null,null,null,"schutzbedürftige Personen ausgesetzt sind"]
[null,null,null,null,"• ","Beurteilen gesundheitlicher Risiken"]
[null,null,null,null,"• ","Beratung zum Festlegen von Soll-Zuständen für den "]
[null,null,null,null,null,"Schutz solcher Personen"]
[null,null,null,null,"• ","Unterstützen bei der Entwicklung von "]
[null,null,null,null,null,"Gestaltungslösungen und Einsatzmöglichkeiten"]
[null,null,null,null,"• ","Umsetzung der Gestaltungslösungen unterstützen und "]
[null,null,null,null,null,"begleiten"]
[null,null,null,null,"• ","Durchführen von Wirkungskontrollen"]
[null,null,null,null,"• ","Gefährdungsbeurteilung fortschreiben"]
[null,null,null,null,"Beschreibung der Leistungen\nfür Auslösekriterium e)"]
["e) ","Einsatz von Zeitarbeitnehmern",null,null,"• ","Unterstützen bei der erstmaligen Durchführung von "]
[null,null,null,null,null,"Gefährdungsbeurteilungen für Zeitarbeitnehmer"]
[null,null,null,null,"• ","Beraten bei der Auswahl von Zeitarbeitsunternehmen"]
[null,null,null,null,"• ","Beraten bei der Vertragsgestaltung"]
[null,null,null,null,"• ","Regelmäßige Überprüfung der Arbeitsplätze und "]
[null,null,null,null,null,"Arbeitsbedingungen der Zeitarbeitnehmer"]
[null,null,null,null,"• ","Unterstützen bei der Einweisung und Unterweisung "]
[null,null,null,null,null,"der Zeitarbeitnehmer"]
[null,null,null,null,"• ","Beraten zu besonderen Problemen der Zeitarbeit"]
["Auslösekriterien zur b/s Betreuung",null,null,null,"Aufwandskriterien"]
["Auslösekriterien zur b/s Betreuung",null,"Trifft zu",null,"Beschreibung der Leistungen\nfür Auslösekriterium f)",null,"Personalaufwand   in Std."]
[null,null,"ja","nein",null,null,"BA","SiFa"]
["f) ","Anforderungen an den Arbeitsprozess",null,null,"• ","Systematische Analyse der Bedingungen zur"]
[null,"zur Teilhabe behinderter Menschen",null,null,null,"Teilhabe"]
[null,null,null,null,"• ","Analysieren von Kompensationsmöglichkeiten"]
[null,null,null,null,"• ","Vergleichen von Fähigkeits- und Anforderungs-"]
[null,null,null,null,null,"profilen"]
[null,null,null,null,"• ","Unterstützen bei Suche nach Teilhabemöglichkeiten"]
[null,null,null,null,"• ","Unterstützen bei Entwicklung von spezifischen "]
[null,null,null,null,null,"Arbeitsgestaltungsmaßnahmen"]
[null,null,null,null,"• ","Zusammenarbeit mit den relevanten Beauftragten"]
[null,null,null,null,"• ","Hinwirken auf und Mitwirken beim Abschluss von "]
[null,null,null,null,null,"Integrationsvereinbarungen"]
[null,null,null,null,"• ","Hinwirken auf die Einbindung überbetrieblicher "]
[null,null,null,null,null,"Institutionen und Kooperieren mit diesen"]
[null,null,null,null,"Beschreibung der Leistungen\nfür Auslösekriterium g)"]
["g) ","Wiedereingliederung von Beschäftigten",null,null,"• ","Mitwirken im Rahmen eines betrieblichen "]
[null,null,null,null,null,"Wiedereingliederungsmanagements"]
[null,null,null,null,"• ","Spezifizieren der Gefährdungsbeurteilung im Hinblick "]
[null,null,null,null,null,"auf die besonderen Leistungsvoraussetzungen"]
[null,null,null,null,"• ","Ermitteln des Anpassungsbedarfs der Arbeitssysteme"]
[null,null,null,null,"• ","Mitwirken bei der Entwicklung von Gestaltungslösun-"]
[null,null,null,null,null,"gen und -konzepten zur Wiedereingliederung"]
[null,null,null,null,"• ","Unterstützen bei der Umsetzung der Gestaltungs-"]
[null,null,null,null,null,"lösungen"]
[null,null,null,null,"• ","Hinwirken auf die Einbindung überbetrieblicher "]
[null,null,null,null,null,"Institutionen und Kooperieren mit diesen"]
[null,null,null,null,"Beschreibung der Leistungen\nfür Auslösekriterium h)"]
["h) ","Betriebsspezifischer Aufwand für die",null,null,"• ","Unterstützen bei der erstmaligen Durchführung von "]
[null,"Gewährleistung von Sicherheit und Gesundheit",null,null,null,"Gefährdungsbeurteilungen zur Berücksichtigung"]
[null,"verursacht durch Dritte (z. B. Kinder, Schüler, ",null,null,null,"möglicher Gefährdungen der Beschäftigten"]
[null,"Studenten, Publikumsverkehr, Kunden, ...)",null,null,null,"durch dritte Personen"]
[null,null,null,null,"• ","Regelmäßige Überprüfung der Arbeitsplätze und "]
[null,null,null,null,null,"Arbeitsbedingungen hinsichtlich möglicher "]
[null,null,null,null,null,"Gefährdungen durch dritte Personen"]
[null,null,null,null,"• ","Beraten zu besonderen Problemen zu Sicherheit und"]
[null,null,null,null,null,"Gesundheit"]
["j)"," ..."]
["Betriebsspezifische Betreuung erforderlich:",null,"ja","nein","Personalaufwand in Stunden\nfür das Aufgabenfeld insgesamt\n(siehe Teilschritt 2.2):"]
["Bei mindestens einem zutreffenden\n„Ja“ ist betriebsspezifische Betreuung erforderlich",null,null,null,null,null,{"$f":"SUM(G174:G182,G184:G193,G195:G206,G208:G216,G220:G232,G234:G244,G246:G255)","v":0},{"$f":"SUM(H174:H182,H184:H193,H195:H206,H208:H216,H220:H232,H234:H244,H246:H255)","v":0}]
["Bemerkungen:"]
[]
[]
["1.6 Sicherheit und Gesundheit unter den Bedingungen des demografischen Wandels"]
["Auslösekriterien zur b/s Betreuung",null,null,null,"Aufwandskriterien"]
["Auslösekriterien zur b/s Betreuung",null,"Trifft zu",null,"Beschreibung der Leistungen\ninsgesamt für Auslösekriterien a) bis e)",null,"Personalaufwand   in Std."]
[null,null,"ja","nein",null,null,"BA","SiFa"]
["a) ","Hoher Anteil von älteren Beschäftigten",null,null,"• ","Analyse der Belegschaftssituation und des "]
["b) ","Divergenz zwischen Fähigkeitsprofil der ",null,null,null,"betrieblichen Umfeldes unter demografischen"]
[null,"Beschäftigten und Anforderungsprofil",null,null,null,"Aspekten von Sicherheit und Gesundheit"]
[null,"durch die Arbeitsaufgabe unter den ",null,null,"• ","Beurteilen des Bedarfs zur menschengerechten "]
[null,"Bedingungen alternder Belegschaften",null,null,null,"Arbeitsgestaltung unter demografischen Aspekten"]
["c)","Defizite in der altersadäquaten Arbeits-",null,null,"• ","Beurteilen der Risiken für älter werdende "]
[null,"gestaltung",null,null,null,"Belegschaften und ältere Beschäftigte"]
["d)","Entwicklung des Führungsverhaltens",null,null,"• ","Ableiten von Soll-Zuständen"]
[null,"unter den Bedingungen älter werdender ",null,null,"• ","Entwickeln von Gestaltungsvorschlägen zur "]
[null,"Belegschaften",null,null,null,"altersgerechten Arbeitsgestaltung"]
["e)"," ...",null,null,"• ","Unterstützen bei der Umsetzung von Gestaltungs-"]
[null,null,null,null,null,"maßnahmen"]
[null,null,null,null,"• ","Unterstützen bei der Entwicklung des Führungsver-"]
[null,null,null,null,null,"haltens im Hinblick auf älter werdende Belegschaf-"]
[null,null,null,null,null,"ten und ältere Beschäftigte"]
[null,null,null,null,"• ","Beobachten der Entwicklungen und erzielten "]
[null,null,null,null,null,"Wirkungen"]
[null,null,null,null,"• ","Fortschreiben der Gefährdungsbeurteilung"]
["Betriebsspezifische Betreuung erforderlich:",null,"ja","nein","Personalaufwand in Stunden\nfür das Aufgabenfeld insgesamt\n(siehe Teilschritt 2.2):"]
["Bei mindestens einem zutreffenden\n„Ja“ ist betriebsspezifische Betreuung erforderlich",null,null,null,null,null,{"$f":"SUM(G265:G282)","v":0},{"$f":"SUM(H265:H282)","v":0}]
["Bemerkungen:"]
[]
[]
["1.7","Arbeitsgestaltung zur Vermeidung arbeitsbedingter Gesundheitsgefahren, Erhalt der individuellen\ngesundheitlichen Ressourcen im Zusammenhang mit der Arbeit"]
["Auslösekriterien zur b/s Betreuung",null,null,null,"Aufwandskriterien"]
["Auslösekriterien zur b/s Betreuung",null,"Trifft zu",null,"Beschreibung der Leistungen\ninsgesamt für Auslösekriterien a) bis e)",null,"Personalaufwand   in Std."]
[null,null,"ja","nein",null,null,"BA","SiFa"]
["a) ","Überdurchschnittlich hoher Krankenstand",null,null,"• ","Analyse der Ursachen von arbeitsbedingten Gesund-"]
[null,"(Vergleichswerte innerhalb des Unternehmens, ",null,null,null,"heitsgefahren und von Defiziten der menschenge-"]
[null,"vergleichbare Betriebe, Branchendurchschnitt)",null,null,null,"rechten Arbeitsgestaltung"]
["b) ","Defizite in der menschen- und gesundheitsge-",null,null,"• ","Prüfen des relevanten Stands von Technik, Arbeits-"]
[null,"rechten Gestaltung von Arbeitsaufgaben, ",null,null,null,"medizin und Hygiene sowie der gesicherten arbeits-"]
[null,"Arbeitsorganisation und Arbeitsumgebung im ",null,null,null,"wissenschaftlichen Erkenntnisse zur menschen- "]
[null,"Hinblick auf den Erhalt der gesundheitlichen ",null,null,null,"und gesundheitsgerechten Arbeitsgestaltung"]
[null,"Ressourcen",null,null,"• ","Ermittlung von Ansatzpunkten zur Erhöhung der "]
["c)","Nicht hinreichende Angebote zu betrieblichen ",null,null,null,"Gesundheitskompetenz der Beschäftigten bei der "]
[null,"Aktivitäten zum Erhalt der gesundheitlichen  ",null,null,null,"Arbeit und zur menschengerechten Arbeitsgestal- "]
[null,"Ressourcen im Zusammenhang mit der Arbeit",null,null,null,"tung zum Erhalt der gesundheitlichen Ressourcen"]
[null,"(Rückenschulen, Pausengymnastik, ...)",null,null,"• ","Beratung zum Festlegen von Soll-Zuständen zur Ver-"]
["d)","Unzureichende Gesundheitskompetenz",null,null,null,"meidung von arbeitsbedingten Gesundheitsgefahren "]
[null,"der Beschäftigten zum Erhalt der gesundheit-",null,null,null,"zur menschengerechten Arbeitsgestaltung und zum "]
[null,"lichen Ressourcen im Zusammenhang mit der ",null,null,null,"Erhalt der individuellen gesundheitlichen Ressourcen"]
[null,"Arbeit",null,null,"• ","Beraten, Informieren und Aufklären der Beschäftig-"]
["e)"," ...",null,null,null,"ten zur Befähigung, gesundheitsrelevante Faktoren "]
[null,null,null,null,null,"bei der Arbeit selbst positiv zu beeinflussen;"]
[null,null,null,null,null,"Initiieren, Unterstützen von Lernprozessen"]
[null,null,null,null,"• ","Beraten und Unterstützen bei der Entwicklung von "]
[null,null,null,null,null,"betrieblichen Aktivitäten und Angeboten zum Erhalt "]
[null,null,null,null,null,"der individuellen gesundheitlichen Ressourcen"]
[null,null,null,null,"• ","Beraten und Unterstützen bei der menschengerech-"]
[null,null,null,null,null,"ten Arbeitsgestaltung zum Erhalt der individuellen "]
[null,null,null,null,null,"gesundheitlichen Ressourcen"]
[null,null,null,null,null,"(Gestaltung der Arbeitsaufgaben, Arbeitsorganisation "]
[null,null,null,null,null,"und Umgebung, soziale Arbeitsbedingungen)"]
[null,null,null,null,"• ","Hinwirken auf die Realisierung solcher Gestaltungs-"]
[null,null,null,null,null,"ansätze"]
[null,null,null,null,"• ","Begleiten der Umsetzung"]
[null,null,null,null,"• ","Regelmäßiges Beobachten und Auswerten der "]
[null,null,null,null,null,"Wirkungen der Maßnahmen"]
["Betriebsspezifische Betreuung erforderlich:",null,"ja","nein","Personalaufwand in Stunden\nfür das Aufgabenfeld insgesamt\n(siehe Teilschritt 2.2):"]
["Bei mindestens einem zutreffenden\n„Ja“ ist betriebsspezifische Betreuung erforderlich",null,null,null,null,null,{"$f":"SUM(G292:G323)","v":0},{"$f":"SUM(H292:H323)","v":0}]
["Bemerkungen:"]
[]
[]
["1.8","Unterstützung bei der Weiterentwicklung eines Gesundheitsmanagements"]
["Auslösekriterien zur b/s Betreuung",null,null,null,"Aufwandskriterien"]
["Auslösekriterien zur b/s Betreuung",null,"Trifft zu",null,"Beschreibung der Leistungen\ninsgesamt für Auslösekriterien a) bis c)",null,"Personalaufwand   in Std."]
[null,null,"ja","nein",null,null,"BA","SiFa"]
["a) ","Betriebliche Entscheidung für die Einführung ",null,null,"• ","Mitwirken, Unterstützen bei der Entwicklung von be-"]
[null,"eines Gesundheitsmanagements",null,null,null,"trieblichen Strukturen zum Gesundheitsmanagement "]
["b) ","Betreiben eines Gesundheitsmanagements",null,null,null,"(z. B. Einrichten von Steuerkreisen, Gesundheits-"]
["c)"," ...",null,null,null,"zirkeln, Vernetzung mit dem Arbeitsschutzausschuss)"]
[null,null,null,null,"• ","Zusammenwirken mit anderen Akteuren der betrieb-"]
[null,null,null,null,null,"lichen Gesundheit (z. B. Gesundheitsbeauftragte, "]
[null,null,null,null,null,"Akteure der Krankenkassen)"]
[null,null,null,null,"• ","Unterstützen, Mitwirken bei der Steuerung von Pro-"]
[null,null,null,null,null,"zessen eines Gesundheitsmanagements "]
[null,null,null,null,null,"(Prozesse sind insbesondere Erstellen von Gesund-"]
[null,null,null,null,null,"heitsberichten, Durchführen von Mitarbeiterbefra-"]
[null,null,null,null,null,"gungen und von Aktionstagen, PR- und Marketing- "]
[null,null,null,null,null,"maßnahmen, Planung von Programmen, Evaluation "]
[null,null,null,null,null,"(Beschreibung, Analyse und Bewertung) und Quali-"]
[null,null,null,null,null,"tätsmanagement der entsprechenden Maßnahmen)"]
[null,null,null,null,"• ","Hinwirken auf die dauerhafte Integration von Gesund-"]
[null,null,null,null,null,"heitsmanagement in Betriebsroutinen (Vernetzung "]
[null,null,null,null,null,"mit dem Arbeitsschutzmanagement, Integration "]
[null,null,null,null,null,"in die Betriebsorganisation und -führung)"]
["Betriebsspezifische Betreuung erforderlich:",null,"ja","nein","Personalaufwand in Stunden\nfür das Aufgabenfeld insgesamt\n(siehe Teilschritt 2.2):"]
["Bei mindestens einem zutreffenden\n„Ja“ ist betriebsspezifische Betreuung erforderlich",null,null,null,null,null,{"$f":"SUM(G333:G351)","v":0},{"$f":"SUM(H333:H351)","v":0}]
["Bemerkungen:"]
[]
[]
["2","Betriebliche Veränderungen in den Arbeitsbedingungen und in der Organisation"]
["2.1","Beschaffung von grundlegend neuartigen Maschinen, Geräten"]
["Auslösekriterien zur b/s Betreuung",null,null,null,"Aufwandskriterien"]
["Auslösekriterien zur b/s Betreuung",null,"Trifft zu",null,"Beschreibung der Leistungen\ninsgesamt für Auslösekriterien a) bis i)",null,"Personalaufwand   in Std."]
[null,null,"ja","nein",null,null,"BA","SiFa"]
["a) ","Für den Betrieb gegenüber der Grund-",null,null,"• ","Unterstützen bei Gefährdungsermittlung und Risiko-"]
[null,"betreuung neuartige / neue Risiken sind ",null,null,null,"beurteilung der zu verändernden Arbeitssysteme "]
[null,"zu erwarten",null,null,null,"durch die Beschaffung neuer Maschinen, Geräte"]
["b) ","Neuartige Gefahrenquellen können auftreten",null,null,"• ","Beraten zur Ermittlung von Anforderungen an die "]
["c)","Grundlegend veränderte Wirkungen auf die ",null,null,null,"zu beschaffenden Maschinen, Geräte"]
[null,"Arbeitsumgebung",null,null,"• ","Beraten zu Anforderungen beim Einsatz neuartiger "]
["d)","Bisherige Schutzmaßnahmen können nicht / ",null,null,null,"Maschinen, Geräte (Arbeitssystemgestaltung)"]
[null,"nur bedingt übertragen werden",null,null,"• ","Mitwirken an der Erstellung von Pflichtenheften / "]
["e)","Es bestehen keine standardisierten Lösungen",null,null,null,"Ausschreibungen"]
["f)","Es sind grundlegend neuartige Anforderungen ",null,null,"• ","Mitwirken bei der Bewertung von Angeboten sowie "]
[null,"an die Qualifikation / das arbeitsschutz- ",null,null,null,"Vertragsgestaltungen"]
[null,"gerechte Verhalten zu erwarten",null,null,"• ","Überprüfen auf Erfüllung vereinbarter Anforderung "]
["g)","Es wird eine grundlegend veränderte",null,null,null,"bei Lieferung, Aufstellung, Montage, ..."]
[null,"Organisation erforderlich",null,null,"• ","Mitwirken bei Realisierung der Veränderungen; "]
["h)","Es entstehen andere / neue Schnittstellen zu ",null,null,null,"Unterstützen bei der Abnahme"]
[null,"bestehenden Arbeitssystemen",null,null,"• ","Wirkungskontrolle"]
["i)"," ...",null,null,"• ","Fortschreiben der Gefährdungsbeurteilung"]
["Betriebsspezifische Betreuung erforderlich:",null,"ja","nein","Personalaufwand in Stunden\nfür das Aufgabenfeld insgesamt\n(siehe Teilschritt 2.2):"]
["Bei mindestens einem zutreffenden\n„Ja“ ist betriebsspezifische Betreuung erforderlich",null,null,null,null,null,{"$f":"SUM(G362:G378)","v":0},{"$f":"SUM(H362:H378)","v":0}]
["Bemerkungen:"]
[]
[]
["2.2","Grundlegende Veränderungen zur Einrichtung neuer Arbeitsplätze bzw. der Arbeitsplatzausstattung;  Planung, Neuerrichtung von Betriebsanlagen; Umbau, Neubaumaßnahmen"]
["Auslösekriterien zur b/s Betreuung",null,null,null,"Aufwandskriterien"]
["Auslösekriterien zur b/s Betreuung",null,"Trifft zu",null,"Beschreibung der Leistungen\ninsgesamt für Auslösekriterien a) bis j)",null,"Personalaufwand   in Std."]
[null,null,"ja","nein",null,null,"BA","SiFa"]
["a) ","Für den Betrieb gegenüber der Grundbetreu-",null,null,"• ","Unterstützen bei Gefährdungsermittlung und Risiko-"]
[null,"ung neuartige / neue Risiken sind zu erwarten",null,null,null,"beurteilung der zu verändernden Arbeitssysteme"]
["b) ","Neuartige Gefahrenquellen können auftreten",null,null,"• ","Unterstützen der Ermittlung und Festlegung von "]
["c)","Grundlegend veränderte Wirkungen auf die ",null,null,null,"Anforderungen an die Arbeitsplatz-, Arbeitsstätten-"]
[null,"Arbeitsumgebung bzw. auf die Arbeitsplätze  ",null,null,null,"gestaltung"]
[null,"und Arbeitsabläufe",null,null,"• ","Aufarbeiten relevanter Vorschriften und Regeln, des "]
["d)","Bisherige Schutzmaßnahmen können nicht / ",null,null,null,"Stands der Technik und Arbeitsmedizin"]
[null,"nur bedingt übertragen werden",null,null,"• ","Mitwirken an der Erstellung von Pflichtenheften / "]
["e)","Es bestehen keine standardisierten Lösungen",null,null,null,"Ausschreibungen"]
["f)","Es sind grundlegend veränderte Anfor-",null,null,"• ","Beraten zu Anforderungen beim Einsatz neuartiger "]
[null,"derungen an die Qualifikation / das ",null,null,null,"Arbeitsplatzausstattung, Betriebsanlagen, Räume etc. "]
[null,"arbeitsschutzgerechte Verhalten zu erwarten",null,null,null,"(technisch, organisatorisch, personell)"]
["g)","Es wird eine grundlegend veränderte",null,null,"• ","Mitwirken bei der Bewertung von Angeboten sowie "]
[null,"Organisation erforderlich",null,null,null,"Vertragsgestaltungen"]
["h)","Es entstehen andere / neue Schnittstellen zu ",null,null,"• ","Unterstützen bei der Arbeitssystemgestaltung"]
[null,"bestehenden Arbeitssystemen",null,null,"• ","Überprüfen auf Erfüllung vereinbarter Anforderungen "]
["i)","Es entstehen neue Zuständigkeiten / ",null,null,null,"bei Baumaßnahmen, Lieferung, Aufstellung, "]
[null,"Verantwortlichkeiten",null,null,null,"Montage, ..."]
["j)"," ...",null,null,"• ","Mitwirken bei der Realisierung der Veränderungen; "]
[null,null,null,null,null,"Unterstützen bei der Abnahme"]
[null,null,null,null,"• ","Wirkungskontrollen"]
[null,null,null,null,"• ","Fortschreiben der Gefährdungsbeurteilung"]
["Betriebsspezifische Betreuung erforderlich:",null,"ja","nein","Personalaufwand in Stunden\nfür das Aufgabenfeld insgesamt\n(siehe Teilschritt 2.2):"]
["Bei mindestens einem zutreffenden\n„Ja“ ist betriebsspezifische Betreuung erforderlich",null,null,null,null,null,{"$f":"SUM(G388:G409)","v":0},{"$f":"SUM(H388:H409)","v":0}]
["Bemerkungen:"]
[]
[]
["2.3","Einführung völlig neuer Stoffe, Materialien"]
["Auslösekriterien zur b/s Betreuung",null,null,null,"Aufwandskriterien"]
["Auslösekriterien zur b/s Betreuung",null,"Trifft zu",null,"Beschreibung der Leistungen\ninsgesamt für Auslösekriterien a) bis g)",null,"Personalaufwand   in Std."]
[null,null,"ja","nein",null,null,"BA","SiFa"]
["a) ","Für den Betrieb gegenüber der",null,null,"• ","Unterstützen bei der Informationsermittlung hin- "]
[null,"Grundbetreuung andersartige / neue Risiken",null,null,null,"sichtlich der neuen Stoffe, Materialien"]
[null,"sind zu erwarten",null,null,"• ","Beurteilen der Risiken durch die neuen Stoffe, "]
["b) ","Neuartige Gefahrenquellen können auftreten",null,null,null,"Materialien"]
["c)","Veränderte Wirkungen auf die Arbeitsum-",null,null,"• ","Unterstützen bei der Auswahl risikoarmer Stoffe, "]
[null,"gebung bzw. auf die Arbeitsplätze und ",null,null,null,"Materialien"]
[null,"Arbeitsabläufe",null,null,"• ","Festlegen von Soll-Zuständen für den Einsatz von "]
["d)","Bisherige Schutzmaßnahmen können nicht / ",null,null,null,"Stoffen und Materialien"]
[null,"nur bedingt übertragen werden",null,null,"• ","Unterstützen bei der betrieblichen Zulassung und "]
["e)","Es bestehen keine standardisierten Lösungen",null,null,null,"Freigabe von Stoffen und Materialien"]
["f)","Es sind völlig veränderte Anforderungen",null,null,"• ","Unterstützen bei der Festlegung von Schutzmaß-"]
[null,"an die Qualifikation / das arbeitsschutzge- ",null,null,null,"nahmen"]
[null,"rechte Verhalten zu erwarten",null,null,"• ","Mitwirken bei der Realisierung der Schutzmaßnah-"]
["g)"," ...",null,null,null,"men und Wirkungskontrollen"]
[null,null,null,null,"• ","Fortschreiben der Gefährdungsbeurteilung"]
["Betriebsspezifische Betreuung erforderlich:",null,"ja","nein","Personalaufwand in Stunden\nfür das Aufgabenfeld insgesamt\n(siehe Teilschritt 2.2):"]
["Bei mindestens einem zutreffenden\n„Ja“ ist betriebsspezifische Betreuung erforderlich",null,null,null,null,null,{"$f":"SUM(G419:G433)","v":0},{"$f":"SUM(H419:H433)","v":0}]
["Bemerkungen:"]
[]
[]
["2.4","Grundlegende Veränderung betrieblicher Abläufe und Prozesse; grundlegende Veränderung der\nArbeitszeitgestaltung; grundlegende Änderung, Einführung neuer Arbeitsverfahren"]
["Auslösekriterien zur b/s Betreuung",null,null,null,"Aufwandskriterien"]
["Auslösekriterien zur b/s Betreuung",null,"Trifft zu",null,"Beschreibung der Leistungen\ninsgesamt für Auslösekriterien a) bis j)",null,"Personalaufwand   in Std."]
[null,null,"ja","nein",null,null,"BA","SiFa"]
["a) ","Für den Betrieb gegenüber der Grundbetreuung",null,null,"• ","Gefährdungsermittlung und Risikobeurteilung der zu "]
[null,"andersartige / neue Risiken sind zu erwarten",null,null,null,"verändernden Arbeitssysteme"]
["b) ","Neuartige Gefahrenquellen können auftreten",null,null,"• ","Unterstützen der Ermittlung und Festlegung von "]
["c)","Veränderte Wirkungen auf die Arbeitsum-",null,null,null,"Anforderungen an die Gestaltung von Abläufen, "]
[null,"gebung bzw. auf die Arbeitsplätze und",null,null,null,"Arbeitsverfahren, Arbeitszeit"]
[null,"Arbeitsabläufe",null,null,"• ","Aufarbeiten relevanter Vorschriften und Regeln, des "]
["d)","Bisherige Schutzmaßnahmen können nicht / ",null,null,null,"Stands der Technik und Arbeitsmedizin, entspr. "]
[null,"nur bedingt übertragen werden",null,null,null,"umfassende Recherchen"]
["e)","Es bestehen keine standardisierten Lösungen",null,null,"• ","Beraten zu Anforderungen bei der Veränderung von "]
["f)","Es sind völlig veränderte Anforderungen an die",null,null,null,"Abläufen, Arbeitsverfahren, Arbeitszeit"]
[null,"Qualifikation / das arbeitsschutzgerechte ",null,null,"• ","Unterstützen bei der Arbeitssystemgestaltung"]
[null,"Verhalten zu erwarten",null,null,"• ","Mitwirken bei der Realisierung der Veränderungen; "]
["g)","Es wird eine völlig veränderte Organisation ",null,null,null,"Unterstützen bei der Abnahme"]
[null,"erforderlich",null,null,"• ","Wirkungskontrollen"]
["h)","Es entstehen andere / neue Schnittstellen",null,null,"• ","Fortschreiben der Gefährdungsbeurteilung"]
[null,"zu bestehenden Arbeitssystemen"]
["i)","Es entstehen neue Zuständigkeiten / "]
[null,"Verantwortlichkeiten"]
["j)","…"]
["Betriebsspezifische Betreuung erforderlich:",null,"ja","nein","Personalaufwand in Stunden\nfür das Aufgabenfeld insgesamt\n(siehe Teilschritt 2.2):"]
["Bei mindestens einem zutreffenden\n„Ja“ ist betriebsspezifische Betreuung erforderlich",null,null,null,null,null,{"$f":"SUM(G443:G461)","v":0},{"$f":"SUM(H443:H461)","v":0}]
["Bemerkungen:"]
[]
[]
["2.5","Spezifische Erfordernisse zur Schaffung einer geeigneten Organisation zur Durchführung der\nMaßnahmen des Arbeitsschutzes sowie zur Integration in die Führungstätigkeit und zum Aufbau\neines Systems der Gefährdungsbeurteilung"]
["Auslösekriterien zur b/s Betreuung",null,null,null,"Aufwandskriterien"]
["Auslösekriterien zur b/s Betreuung",null,"Trifft zu",null,"Beschreibung der Leistungen\ninsgesamt für Auslösekriterien a) bis g)",null,"Personalaufwand   in Std."]
[null,null,"ja","nein",null,null,"BA","SiFa"]
["a) ","Erfordernisse zur Integration in die ",null,null,"• ","Aufbereiten und Darstellen von Sinnhaftigkeit, Not-"]
[null,"Führungstätigkeit und zum Aufbau einer ",null,null,null,"wendigkeit und Nutzen der Implementierung und "]
[null,"geeigneten Organisation, soweit Bedarf über ",null,null,null,"Weiterentwicklung einer geeigneten Organisation "]
[null,"die Grundbetreuung hinaus besteht",null,null,null,"und der Integration in die Führungstätigkeit bzw. "]
["b) ","Betriebsspezifische Erfordernisse zur ",null,null,null,"eines Gesamtsystems der Gefährdungsbeurteilung, "]
[null,"Implementierung eines Gesamtsystems der",null,null,null,"Beraten der Unternehmensleitung"]
[null,"Gefährdungsbeurteilung",null,null,"• ","Ermitteln des spezifischen Bedarfs für die Imple-"]
["c)","Grundlegende Veränderungen zur Integration",null,null,null,"mentierung und Weiterentwicklung, Analyse des "]
[null,"des Arbeitsschutzes in das Management",null,null,null,"erreichten Stands; Systematisieren des weiteren "]
["d)","Einführung von Managementprinzipien und",null,null,null,"Vorgehens"]
[null,"–systemen mit Relevanz zum Arbeitsschutz",null,null,"• ","Entwickeln und Vereinbaren von Zielen mit der "]
["e)","Integration des Arbeitsschutzes",null,null,null,"Unternehmensleitung"]
[null,"in bestehende Managementsysteme",null,null,"• ","Entwickeln von betriebsspezifischen Konzepten für "]
["h)","Aufbau eines Arbeitsschutzmanagement-",null,null,null,"die Integration von Arbeitsschutzbelangen in das "]
[null,"systems",null,null,null,"betriebliche Management, in Managementsysteme, "]
["g)","…",null,null,null,"zum Aufbau von Arbeitsschutzmanagementsystemen, "]
[null,null,null,null,null,"für ein Gesamtsystem zur Gefährdungsbeurteilung"]
[null,null,null,null,"• ","Unterstützen bei der Realisierung der Konzepte"]
[null,null,null,null,"• ","Audits und Wirkungskontrollen"]
[null,null,null,null,"• ","Kontinuierlichen Verbesserungsprozess unterstützen"]
["Betriebsspezifische Betreuung erforderlich:",null,"ja","nein","Personalaufwand in Stunden\nfür das Aufgabenfeld insgesamt\n(siehe Teilschritt 2.2):"]
["Bei mindestens einem zutreffenden\n„Ja“ ist betriebsspezifische Betreuung erforderlich",null,null,null,null,null,{"$f":"SUM(G471:G490)","v":0},{"$f":"SUM(H471:H490)","v":0}]
["Bemerkungen:"]
[]
[]
["3","Externe Entwicklung mit spezifischem Einfluss auf die betriebliche Situation"]
["3.1","Neue Vorschriften, die für den Betrieb umfangreichere Änderungen nach sich ziehen"]
["Auslösekriterien zur b/s Betreuung",null,null,null,"Aufwandskriterien"]
["Auslösekriterien zur b/s Betreuung",null,"Trifft zu",null,"Beschreibung der Leistungen\ninsgesamt für Auslösekriterien a) bis d)",null,"Personalaufwand   in Std."]
[null,null,"ja","nein",null,null,"BA","SiFa"]
["a) ","Fortschreiben der Gefährdungsbeurteilung ist ",null,null,"• ","Aufarbeiten grundlegender Konsequenzen für den "]
[null,"erforderlich",null,null,null,"Betrieb"]
["b) ","Veränderungen in den bestehenden",null,null,"• ","Unterstützen bei der Beurteilung der Arbeitsbedin-"]
[null,"Arbeitssystemen sind erforderlich",null,null,null,"gungen nach Maßgabe der neuen Vorschrift"]
["c)","Veränderungen in der Ausgestaltung einer ",null,null,"• ","Organisation von erforderlichen Qualifizierungs-"]
[null,"geeigneten Organisation sind erforderlich",null,null,null,"aktivitäten zur Vorschrift generell"]
["d)"," ...",null,null,"• ","Ableiten von Konsequenzen für die Zuweisung von "]
[null,null,null,null,null,"Aufgaben, Zuständigkeiten und Verantwortung"]
[null,null,null,null,"• ","Mitwirken bei Veränderungen betrieblicher Ablauf-"]
[null,null,null,null,null,"organisation"]
[null,null,null,null,"• ","Unterstützen bei notwendigen technischen und "]
[null,null,null,null,null,"organisatorischen Veränderungen in den Arbeits-"]
[null,null,null,null,null,"systemen"]
[null,null,null,null,"• ","Unterstützen bei der Vorbereitung und Durchführung "]
[null,null,null,null,null,"von Maßnahmen zum arbeitsschutzgerechten "]
[null,null,null,null,null,"Verhalten der Beschäftigten"]
["Betriebsspezifische Betreuung erforderlich:",null,"ja","nein","Personalaufwand in Stunden\nfür das Aufgabenfeld insgesamt\n(siehe Teilschritt 2.2):"]
["Bei mindestens einem zutreffenden\n„Ja“ ist betriebsspezifische Betreuung erforderlich",null,null,null,null,null,{"$f":"SUM(G501:G516)","v":0},{"$f":"SUM(H501:H516)","v":0}]
["Bemerkungen:"]
[]
[]
["3.2","Weiterentwicklung des für den Betrieb relevanten Stands der Technik und Arbeitsmedizin"]
["Auslösekriterien zur b/s Betreuung",null,null,null,"Aufwandskriterien"]
["Auslösekriterien zur b/s Betreuung",null,"Trifft zu",null,"Beschreibung der Leistungen\ninsgesamt für Auslösekriterien a) bis e)",null,"Personalaufwand   in Std."]
[null,null,"ja","nein",null,null,"BA","SiFa"]
["a) ","Grundlegend neue Erkenntnisse zu",null,null,"• ","Ermitteln des betriebsspezifisch weiterentwickelten "]
[null,"Gefährdungen",null,null,null,"Stands der Technik und Arbeitsmedizin"]
["b) ","Auswertung überbetrieblich auftretender",null,null,"• ","Aufarbeiten der grundlegenden Konsequenzen für "]
[null,"Ereignisse (Großbrände, Epidemien, ...)",null,null,null,"den Betrieb"]
["c)","Neuartige Lösungskonzepte zur Vermeidung / ",null,null,"• ","Unterstützen bei der Beurteilung der Arbeitsbedin-"]
[null,"Bekämpfung von Gefährdungen",null,null,null,"gungen entsprechend dem weiterentwickelten Stand "]
["d)","Neuartige Ansätze zur Stärkung von ",null,null,null,"der Technik und Arbeitsmedizin"]
[null,"Gesundheitsfaktoren",null,null,"• ","Entwickeln von Gestaltungs- und Schutzkonzepten "]
["e) "," ...",null,null,null,"entsprechend dem weiterentwickelten Stand der "]
[null,null,null,null,null,"Technik und Arbeitsmedizin"]
[null,null,null,null,"• ","Unterstützen bei notwendigen technischen und "]
[null,null,null,null,null,"organisatorischen Veränderungen in den Arbeits-"]
[null,null,null,null,null,"systemen"]
[null,null,null,null,"• ","Begleiten der Realisierung"]
[null,null,null,null,"• ","Wirkungskontrolle"]
[null,null,null,null,"• ","Fortschreiben der Gefährdungsbeurteilung"]
["Betriebsspezifische Betreuung erforderlich:",null,"ja","nein","Personalaufwand in Stunden\nfür das Aufgabenfeld insgesamt\n(siehe Teilschritt 2.2):"]
["Bei mindestens einem zutreffenden\n„Ja“ ist betriebsspezifische Betreuung erforderlich",null,null,null,null,null,{"$f":"SUM(G526:G541)","v":0},{"$f":"SUM(H526:H541)","v":0}]
["Bemerkungen:"]
[]
[]
["4","Betriebliche Aktionen, Programme und Maßnahmen"]
["4.1","Schwerpunktprogramme, Kampagnen sowie Unterstützung von Aktionen zur Gesundheitsförderung"]
["Auslösekriterien zur b/s Betreuung",null,null,null,"Aufwandskriterien"]
["Auslösekriterien zur b/s Betreuung",null,"Trifft zu",null,"Beschreibung der Leistungen\ninsgesamt für Auslösekriterien a) bis j)",null,"Personalaufwand   in Std."]
[null,null,"ja","nein",null,null,"BA","SiFa"]
["a) ","Initiative, Entscheidung des Arbeitgebers bzw.",null,null,"• ","Analyse des Problems, zu dem ein Programm "]
[null,"Erfordernis zu Schwerpunktprogrammen zur ",null,null,null,"durchgeführt werden soll"]
[null,"Bekämpfung von Gefährdungsschwerpunkten: ",null,null,"• ","Vorbereiten von Zielsetzungen betrieblicher Schwer-"]
[null,"Anzahl der Exponierten gegenüber speziellen ",null,null,null,"punktprogramme"]
[null,"Gefährdungen (getrennt zu betrachten ",null,null,"• ","Entwickeln von Bewertungskriterien für den Erfolg "]
[null,"nach den verschiedenen Gefährdungen), ",null,null,null,"des Programms"]
[null,"zeitliche Häufigkeit der Expositionen",null,null,"• ","Klären der inhaltlichen Ausgestaltung (Programm-"]
["b) ","Initiative, Entscheidung des Arbeitgebers",null,null,null,"planung, Arbeitsschritte, ...)"]
[null,"bzw. Erfordernis zu Schwerpunktprogrammen ",null,null,"• ","Unterstützen bei der Planung erforderlicher Res-"]
[null,"zum sicherheits- / gesundheitsgerechten",null,null,null,"sourcen und Vorbereitung entsprechender Ent-"]
[null,"Verhalten; Aktionen zur Kompetenzentwick- ",null,null,null,"scheidungen"]
[null,"lung / Qualifizierung im Arbeitsschutz",null,null,"• ","Beraten, Informieren und Aufklären der Beschäftigten "]
["c)","Initiative, Entscheidung des Arbeitgebers bzw. ",null,null,null,"zur Befähigung, gesundheitsrelevante Faktoren bei "]
[null,"Erfordernis zu Schwerpunktprogrammen nach",null,null,null,"der Arbeit selbst positiv zu beeinflussen; Initiieren, "]
[null,"besonders schwerwiegenden Unfällen",null,null,null,"Unterstützen von Lernprozessen"]
["d)","Initiative, Entscheidung des Arbeitgebers bzw. ",null,null,"• ","Entwickeln programmspezifischer Organisations-"]
[null,"Erfordernis zu Schwerpunktprogrammen nach",null,null,null,"formen"]
[null,"Gesundheitsförderung",null,null,"• ","Beiträge zur Organisation der Öffentlichkeitsarbeit"]
["e)","Initiative, Entscheidung des Arbeitgebers bzw. ",null,null,"• ","Aktive Mitwirkung bei der Umsetzung der Programm-"]
[null,"Erfordernis zu Schwerpunktprogrammen nach",null,null,null,"schritte; Koordinieren von Aktivitäten   "]
[null,"Verbesserung der Arbeitskultur, des sozialen ",null,null,"• ","Controlling; Ergebnismessung"]
[null,"Umfeldes usw.",null,null,"• ","Aufarbeiten von Erfahrungen und Schlussfolgerungen"]
["f)","Programme, Strategien und Kampagnen zur ",null,null,"• ","Maßnahmen zur Nachhaltigkeit"]
[null,"Bewältigung von körperlichen Belastungen",null,null,"• ","Unterstützen bei der Entwicklung des Führungs-"]
["g)","Programme, Strategien und Kampagnen zur ",null,null,null,"verhaltens im Hinblick auf älter werdende Beleg-"]
[null,"Bewältigung psychischer Belastungen",null,null,null,"schaften und ältere Beschäftigte"]
["h)","Verbesserungsbedarf der psychosozialen"]
[null,"Belastungs-Beanspruchungs-Situation durch"]
[null,"die sozialen Arbeitsbedingungen im Hinblick"]
[null,"auf den Erhalt der gesundheitlichen Ressour-"]
[null,"cen (Soziale Arbeitsbedingungen betreffen vor "]
[null,"allem: positive soziale Bindungen, gegen- "]
[null,"seitige Unterstützungsmöglichkeiten, Mitwir-"]
[null,"kungsmöglichkeiten am Arbeitsplatz, mitar-"]
[null,"beiterorientierte Führungstätigkeit, Entwick-"]
[null,"lung der Unternehmenskultur"]
["i)","Entwicklung eines betrieblichen Leitbildes zur"]
[null,"Beschäftigung Älterer, einer entsprechenden"]
[null,"Arbeitskultur"]
["j)"," ..."]
["Betriebsspezifische Betreuung erforderlich:",null,"ja","nein","Personalaufwand in Stunden\nfür das Aufgabenfeld insgesamt\n(siehe Teilschritt 2.2):"]
["Bei mindestens einem zutreffenden\n„Ja“ ist betriebsspezifische Betreuung erforderlich",null,null,null,null,null,{"$f":"SUM(G552:G591)","v":0},{"$f":"SUM(H552:H591)","v":0}]
["Bemerkungen:"]
[]
["Gesamter Personalaufwand in Stunden aller Aufgabenfelder:",null,null,null,null,null,{"$f":"$C$5","v":0},{"$f":"$C$6","v":0}]

{"sheet":"Grundbetreuung","index":2,"n_rows":178,"n_cols":4,"rows_kept":178,"cut":false,"hidden":false,"merged":[[103,2,103,3],[101,2,101,3],[102,2,102,3],[93,2,93,3],[94,2,94,3],[99,2,99,3],[100,2,100,3],[95,1,95,3],[96,1,96,3],[85,1,85,3],[86,2,86,3],[87,2,87,3],[90,2,90,3],[91,1,91,3],[92,1,92,3],[78,2,78,3],[79,1,79,3],[77,2,77,3],[80,1,80,3],[81,2,81,3],[84,1,84,3],[71,1,71,3],[72,1,72,3],[73,1,73,3],[74,2,74,3],[75,2,75,3],[76,2,76,3],[65,1,65,3],[66,1,66,3],[67,2,67,3],[68,2,68,3],[69,2,69,3],[70,1,70,3],[60,2,60,3],[61,1,61,3],[57,2,57,3],[62,1,62,3],[63,2,63,3],[64,2,64,3],[44,1,44,3],[59,2,59,3],[54,1,54,3],[55,1,55,3],[58,2,58,3],[56,1,56,3],[23,1,23,3],[83,2,83,3],[82,2,82,3],[25,2,25,3],[39,2,39,3],[43,1,43,3],[53,2,53,3],[24,1,24,3],[52,2,52,3],[45,2,45,3],[14,2,14,3],[31,2,31,3],[18,2,18,3],[17,2,17,3],[15,2,15,3],[16,2,16,3],[19,1,19,3],[20,2,20,3],[21,2,21,3],[22,2,22,3],[97,2,97,3],[98,2,98,3],[104,1,104,3],[105,1,105,3],[0,0,0,3],[1,1,1,3],[2,1,2,3],[3,2,3,3],[8,2,8,3],[13,1,13,3],[110,2,110,3],[111,2,111,3],[112,2,112,3],[113,1,113,3],[106,2,106,3],[107,2,107,3],[108,2,108,3],[109,2,109,3],[118,2,118,3],[119,1,119,3],[120,1,120,3],[121,2,121,3],[114,1,114,3],[115,2,115,3],[116,2,116,3],[117,2,117,3],[122,2,122,3],[127,1,127,3],[123,2,123,3],[124,2,124,3],[125,1,125,3],[126,1,126,3],[142,1,142,3],[143,2,143,3],[144,2,144,3],[138,1,138,3],[139,1,139,3],[128,2,128,3],[129,2,129,3],[130,2,130,3],[131,1,131,3],[153,1,153,3],[152,1,152,3],[146,2,146,3],[147,2,147,3],[148,2,148,3],[132,1,132,3],[133,2,133,3],[134,2,134,3],[145,2,145,3],[137,1,137,3],[149,2,149,3],[155,1,155,3],[156,1,156,3],[158,1,158,3],[157,1,157,3],[140,1,140,3],[141,1,141,3],[154,1,154,3],[150,2,150,3],[151,2,151,3],[162,2,162,3],[163,2,163,3],[168,1,168,3],[159,2,159,3],[167,1,167,3],[160,2,160,3],[164,1,164,3],[166,1,166,3],[161,2,161,3],[165,1,165,3],[176,1,176,3],[177,1,177,3],[169,1,169,3],[170,2,170,3],[171,2,171,3],[172,2,172,3],[175,1,175,3],[173,1,173,3],[174,1,174,3]]}
["Aufgabenfelder"]
[1,"Unterstützung bei der Gefährdungsbeurteilung (Beurteilung der Arbeitsbedingungen)"]
["1.1","Unterstützung bei der Implementierung eines Gesamtkonzeptes zur Gefährdungsbeurteilung"]
[null,"• ","Beratung des Arbeitgebers/Leiters des Betriebs bei der Organisation der Gefährdungsbeurteilung"]
[null,null,"−","Zum Grundanliegen informieren und sensibilisieren"]
[null,null,"−","Betriebliches Konzept zur Umsetzung entwickeln"]
[null,null,"−","Regelungen zur Durchführung entwickeln"]
[null,null,"−","Konzept zur Implementierung eines ständigen Verbesserungsprozesses entwickeln"]
[null,"• ","Unterstützung der Führungskräfte"]
[null,null,"−","Zum Grundanliegen, zu betrieblichem Konzept und zu Regelungen zur Durchführung informieren und sensibilisieren"]
[null,null,"−","Führungskräfte zur eigenständigen Durchführung qualifizieren"]
[null,null,"−","Hilfsmittel einschl. Dokumentationsvorlagen für Führungskräfte entwickeln und einführen; unter Beteiligung der Führungskräfte bedarfsgerecht anpassen"]
[null,null,"−","Betriebliche Musterbeispiele entwickeln"]
["1.2","Unterstützung bei der Durchführung der Gefährdungsbeurteilung"]
[null,"• ","Führungskräfte bei unterschiedlichen Anlässen direkt beraten"]
[null,"• ","Fachkunde insbesondere bei der Gefährdungsermittlung, Risikobeurteilung und der Ableitung der erforderlichen Maßnahmen als Grundbetreuung einbringen"]
[null,"• ","Motivierung der Beschäftigten zur Beteiligung unterstützen"]
[null,"• ","Bei der Wirkungskontrolle erforderlicher Maßnahmen beraten"]
[null,"• ","Bei der Dokumentation im Sinne von § 6 Arbeitsschutzgesetz (ArbSchG) unterstützen"]
["1.3","Beobachtung der gelebten Praxis und Auswertung der Gefährdungsbeurteilung               "]
[null,"• ","Stichprobenhaft prüfen, ob Beurteilungen der Arbeitsbedingungen bei den relevanten Anlässen in der vorgesehenen Qualität durchgeführt werden (Auditieren)"]
[null,"• ","Auswertungen zusammenfassen und vergleichen sowie Verbesserungsbedarfe ableiten (z. B. im Rahmen des Jahresberichts)"]
[null,"• ","Schwerpunktprogramme zur kontinuierlichen Verbesserung vorschlagen"]
["2","Unterstützung bei grundlegenden Maßnahmen der Arbeitsgestaltung - Verhältnisprävention"]
["2.1","Eigeninitiatives Handeln zur Verhältnisprävention an bestehenden Arbeitssystemen"]
[null,"• ","Erforderliche Arbeitsschutzmaßnahmen überprüfen und Durchführung (Umsetzung) beobachten: Zustand der Arbeitssysteme ermitteln und beurteilen sowie Soll-Zustände festlegen im Hinblick auf Arbeitsmittel, Arbeitsstoffe, Arbeitsorganisation usw. (Erfüllung der Anforderungen nach § 4 ArbSchG)"]
[null,null,"−","In regelmäßigen Abständen Begehungen durchführen, Gefährdungsermittlungen und -beurteilungen mit geeigneten Methoden; Gesundheitsfaktoren in Arbeitssystemen ermitteln und deren Potenziale beurteilen"]
[null,null,"−","Arbeitsmittel, Betriebsanlagen, Arbeitsverfahren, Einsatz von Arbeitsstoffen, Arbeitsplatzgestaltung, soziale und sanitäre Einrichtungen überprüfen – unter Beachtung arbeitsphysiologischer, arbeitspsychologischer und sonstiger ergonomischer sowie arbeitshygienischer Fragen"]
[null,null,"−","Arbeitsablauforganisation einschließlich Arbeitsaufgaben, -rhythmus und Arbeitszeit- und Pausengestaltung überprüfen"]
[null,null,"−","Arbeitsstätten und Arbeitsumgebung überprüfen"]
[null,null,"−","Personaleinsatz (Arbeitsplatzwechsel, Alleinarbeit) überprüfen"]
[null,"• ","Lösungssuche unterstützen, Gestaltungsvorschläge unterbreiten, Durch- und Umsetzung begleiten und darauf hinwirken"]
[null,null,"−","Technische Maßnahmen (Sicherheitstechnik, Ergonomie, einschließlich Instandhaltung der Schutzeinrichtungen)"]
[null,null,"−","Organisatorische Maßnahmen"]
[null,null,"−","Hygienemaßnahmen"]
[null,null,"−","Auswahl, Erprobung, Einsatz, Benutzung, Instandhaltung von persönlichen Schutzausrüstungen"]
[null,null,null,"(PSA)"]
[null,null,"−","Gestaltung organisationsbezogener Gesundheitsfaktoren (Gestaltung von Arbeitsaufgaben, Arbeitsorganisation, Arbeitsumgebung zur Förderung der Gesundheit)"]
[null,null,"−","Arbeitsplatzwechsel sowie Eingliederung und Wiedereingliederung behinderter Menschen"]
[null,"• ","Wirkungskontrollen durchführen"]
[null,null,"−","Durchführung überprüfen"]
[null,null,"−","Wirksamkeit von durchgeführten Schutzmaßnahmen"]
[null,null,"−","Auf neue Gefährdungen überprüfen"]
["2.2","Eigeninitiatives Handeln zur Verhältnisprävention bei Veränderung der Arbeitsbedingungen"]
[null,"Z. B. bei Veränderungen von Arbeitsplätzen, Ersatzbeschaffung von Maschinen, Geräten, Änderung von Arbeitsverfahren, Veränderung betrieblicher Abläufe, Prozesse, Einführung von Arbeitsstoffen, Materialien, Veränderungen der Arbeitszeitgestaltung"]
[null,"• ","Vor Inbetriebnahme bzw. Einführung prüfen auf"]
[null,null,"−","Erfüllung von sicherheitstechnischen und ergonomischen Anforderungen"]
[null,null,"−","Vorhandensein von Betriebsanleitungen, Betriebsanweisungen, Sicherheitsdatenblättern usw."]
[null,null,"−","Vorhandensein von Warn- und Gefahrenhinweisen"]
[null,null,"−","Bereitstellung erforderlicher PSA"]
[null,null,"−","Fortschreibung Gefährdungsbeurteilung"]
[null,null,"−","Ggf. Ableitung ergänzender Maßnahmen"]
[null,"• ","Auf grundlegende Änderungen im Sinne des Geräte- und Produktsicherheitsgesetzes (GPSG) prüfen und ggf. erforderliche Maßnahmen einfordern (einschl. Dokumentationen und Nachweise)"]
[null,"• ","Zu Festlegungen von erforderlichen Prüfungen im Sinne der Betriebssicherheitsverordnung (BetrSichV) beraten"]
["3","Unterstützung bei grundlegenden Maßnahmen der Arbeitsgestaltung - Verhaltensprävention"]
["3.1","Unterstützung bei Unterweisungen, Betriebsanweisungen, Qualifizierungsmaßnahmen                                                   "]
[null,"Hinwirken auf und Mitwirken bei insbesondere"]
[null,"• ","Aufbau eines Unterweisungssystems und der Durchführung von Unterweisungen"]
[null,"• ","Erstellung von Betriebsanweisungen"]
[null,"• ","Entwicklung von Verhaltensregeln"]
[null,"• ","Durchführung von Qualifizierungsmaßnahmen mit Arbeitsschutzbezug"]
["3.2","Motivieren zum sicherheits- und gesundheitsgerechten Verhalten                                                                            "]
[null," Insbesondere"]
[null,"• ","auf sicherheitsgerechtes und gesundheitsgerechtes Verhalten hinwirken"]
[null,"• ","auf die Benutzung der PSA hinwirken"]
["3.3","Information und Aufklärung "]
[null,"Beschäftigte informieren und aufklären insbesondere über"]
[null,"• ","Unfall- und Gesundheitsgefahren"]
[null,"• ","sicherheits- und gesundheitsgerechtes Verhalten"]
[null,"• ","Sicherheits- und Schutzeinrichtungen"]
["3.4","Kollektive arbeitsmedizinische Beratung der Beschäftigten"]
["4","Unterstützung bei der Schaffung einer geeigneten Organisation und Integration in die Führungstätigkeit"]
["4.1","Integration des Arbeitsschutzes in die Aufbauorganisation         "]
[null,"Unterstützen insbesondere bei"]
[null,"• ","Übertragung von Aufgaben und Befugnissen im Arbeitsschutz"]
[null,"• ","Kontrolle der Erfüllung der Aufgaben"]
[null,"• ","Gewährleistung der Beauftragtenorganisation (Arbeitsschutzorganisation: Betriebsarzt, Fachkraft für Arbeitssicherheit, Sicherheitsbeauftragte, Ersthelfer, ...)"]
[null,"• ","Kooperationsverpflichtung der Führungskräfte mit Betriebsarzt und Fachkraft für Arbeitssicherheit"]
[null,"• ","Zusammenarbeit mehrerer Arbeitgeber im Sinne des § 8 ArbSchG (Unteraufträge, Zeitarbeit, Baustellen u. Ä.)"]
["4.2","Integration des Arbeitsschutzes in die Unternehmensführung                  "]
[null,"Unterstützen insbesondere bei"]
[null,"• ","Entwicklung einer betrieblichen Arbeitsschutzstrategie durch die oberste Leitung und Bekanntmachen im Betrieb"]
[null,"• ","Förderung des arbeitsschutzgerechten Führens"]
[null,"• ","Berücksichtigung der Arbeitsschutzbelange bei strategischen und operativen Entscheidungen"]
["4.3","Beratung zu erforderlichen Ressourcen zur Umsetzung der Arbeitsschutzmaßnahmen"]
[null,"Unterstützen bei der Organisation der Ressourcenbereitstellung, insbesondere hinsichtlich"]
[null,"• ","erforderlicher Mittel (gemäß § 3 Abs. 2 ArbSchG) zur Umsetzung der Arbeitsschutzmaßnahmen"]
[null,"• ","Schaffen personeller Voraussetzungen und Sicherstellen erforderlicher Qualifikation:"]
[null,null,"−","Mitwirken bei der Schulung der Sicherheitsbeauftragten"]
[null,null,"−","Mitwirken bei der Schulung der Ersthelfer"]
[null,"• ","Schaffen der organisatorischen Voraussetzungen für die Mitwirkungspflichten der Beschäftigen (gemäß § 3 Abs. 2 ArbSchG)"]
["4.4","Kommunikation und Information sichern"]
[null,"Insbesondere unterstützen beim"]
[null,"• ","Einrichten und Betreiben des Arbeitsschutzausschusses"]
[null,"• ","Bereitstellen erforderlicher Informationen für alle Beteiligten"]
["4.5","Berücksichtigung der Arbeitsschutzbelange in betrieblichen Prozessen"]
[null,"Unterstützen, um Arbeitsschutzbelange in betrieblichen Prozessen durch Regelungen organisatorisch sicherzustellen, insbesondere"]
[null,"• ","in allen Produktions- und Dienstleistungsprozessen (Integration in den betrieblichen Alltag)"]
[null,"• ","für Investitions- und Planungsprozesse"]
[null,"• ","für Neubau-, Umbau-, Anbauvorhaben"]
[null,"• ","für Beschaffung von Arbeitsmitteln (Maschinen, Anlagen, Werkzeuge, Arbeitsstoffe)"]
[null,"• ","für Vergabe von Aufträgen an Fremdfirmen; Zusammenarbeit mehrerer Arbeitgeber"]
[null,"• ","für Instandhaltung (z. B. Baulichkeiten, Maschinen, Anlagen)"]
[null,"• ","für Einstellung neuer Mitarbeiter, Umsetzung von Mitarbeitern"]
["4.6","Betriebliche arbeitsschutzspezifische Prozesse organisieren"]
[null,"Unterstützen, um arbeitsschutzspezifische Prozesse zu organisieren, insbesondere bei"]
[null,"• ","Umgang mit dem Vorschriften- und Regelwerk zum Arbeitsschutz (Vorschriften- und Regelwerksmanagement)"]
[null,"• ","Überwachen des Zustands der Arbeitsbedingungen"]
[null,"• ","Umgang mit externen Vorgaben zum Arbeitsschutz (Auflagenmanagement)"]
[null,"• ","Organisation der Ersten Hilfe; Einsatzplanung der Ersthelfer"]
[null,"• ","Notfallmanagement, Störfallorganisation"]
[null,"• ","Unfallmeldewesen"]
[null,"• ","Organisation der arbeitsmedizinischen Vorsorgeuntersuchungen"]
["4.7","Ständige Verbesserung sicherstellen"]
[null,"Unterstützen insbesondere bei"]
[null,"• ","der Ableitung und Vorgabe von Zielen aus der Bestandsaufnahme"]
[null,"• ","der Durchführung von Maßnahmen"]
[null,"• ","der Bewertung von Stand und Entwicklung"]
[null,"• ","der Durchführung von Verbesserungsmaßnahmen"]
["5","Untersuchung nach Ereignissen"]
["5.1","Untersuchung nach Ereignissen, Ursachenanalysen und deren Auswertungen"]
[null,"• ","Meldepflichtige Unfälle, nicht-meldepflichtige Unfälle, Beinaheunfälle, Erste-Hilfe-Fälle, relevante Zwischenfälle ohne Personenschäden; speziell auch tödliche, lebensbedrohliche und Massenunfälle"]
[null,"• ","Berufskrankheiten (Verdachtsfälle, anerkannte Berufskrankheiten)"]
[null,"• ","Arbeitsbedingte Erkrankungen; Auswertung von Gesundheitsberichten von Krankenkassen"]
[null,"• ","Wegeunfälle"]
["5.2","Ermitteln von Unfallschwerpunkten sowie Schwerpunkten arbeitsbedingter Erkrankungen"]
["5.3","Verbesserungsvorschläge"]
[null,"Ableiten von Verbesserungsvorschlägen aus den Analysen und Untersuchungen zur"]
[null,"• ","Vermeidung der Wiederholung der eingetretenen Unfälle und Erkrankungen und anderer Ereignisse"]
[null,"• ","Vermeidung vergleichbarer Unfälle, Erkrankungen und anderer Ereignisse"]
[null,"• ","Bekämpfung von Unfallschwerpunkten und Schwerpunkten arbeitsbedingter Erkrankungen"]
["6","Allgemeine Beratung von Arbeitgebern und Führungskräften, betrieblichen Interessenvertretungen, Beschäftigten"]
["6.1","Beratung zu Rechtsgrundlagen, Stand der Technik und Arbeitsmedizin, wissenschaftlichen Erkenntnissen\nBeobachtung und Auswertung"]
[null,"• ","von Vorschriften und ihrer Weiterentwicklung"]
[null,"• ","der Weiterentwicklung des für den Betrieb relevanten Stands der Technik und Arbeitsmedizin bezüglich"]
[null,null,"−","des Wissensstandes zu Gefährdungen und zu Gesundheitsfaktoren"]
[null,null,"−","Fortschritt bei Maßnahmen zu Sicherheit und Gesundheit einschl. menschengerechter Arbeitsgestaltung"]
["6.2","Beantwortung von Anfragen"]
["6.3","Verbreitung der Information im Unternehmen, einschließlich Teambesprechungen"]
["6.4","Externe Beratung zu speziellen Problemen des Arbeitsschutzes organisieren"]
["7","Erstellung von Dokumentationen, Erfüllung von Meldepflichten"]
["7.1","Unterstützung bei der Erstellung von Dokumentationen"]
[null,"Insbesondere bei"]
[null,"• ","Erfüllung spezieller Forderungen (z. B. Explosionsschutz-Dokument)"]
[null,"• ","Untersuchung von Unfällen und Berufskrankheiten"]
[null,"• ","Prüfung von Geräten nach BetrSichV"]
[null,"• ","Unterstützung bei der Dokumentation von Zugangsberechtigungen zu besonders gefährlichen Arbeitsbereichen (§ 9 ArbSchG)"]
[null,"• ","Unterweisung"]
[null,"• ","Unterrichtung über Schutzmaßnahmen bei besonderen Gefahren"]
[null,"• ","Freigabe von Anlagen usw. für spezielle Tätigkeiten"]
[null,"• ","Übertragung von Aufgaben"]
[null,"• ","Kontrollen für Alleinarbeit"]
["7.2","Unterstützung bei der Erfüllung von Meldepflichten gegenüber den zuständigen\nBehörden und Unfallversicherungsträgern"]
["7.3","Dokumentation von Vorschlägen an den Arbeitgeber einschließlich Angabe des\njeweiligen Umsetzungsstandes"]
["7.4","Dokumentation zur eigenen Tätigkeit und zur Inanspruchnahme der Einsatzzeiten"]
["8","Mitwirken in betrieblichen Besprechungen"]
["8.1","Direkte persönliche Beratung von Arbeitgebern"]
["8.2","Teilnahme an Dienstgesprächen des Arbeitgebers mit seinen Führungskräften"]
[null,"Insbesondere zu Themen wie"]
[null,"• ","Aufarbeitungen der bestehenden Risiken im Unternehmen sowie Gesundheitsfaktoren in den Arbeitssystemen"]
[null,"• ","Umsetzung von Maßnahmen zu Sicherheit und Gesundheit in den Arbeitssystemen"]
[null,"• ","Analysen der Verankerung des Arbeitsschutzes in allen Tätigkeiten und in die betrieblichen Führungsstrukturen"]
[null,"• ","Planungen zu Veränderungen von Arbeitssystemen und der betrieblichen Organisation"]
[null,"• ","Schlussfolgerungen für die Verbesserung von Sicherheit und Gesundheit"]
["8.3","Teilnahme an Besprechungen der betrieblichen Beauftragten entsprechend §§ 9, 10 und 11 Arbeitssicherheitsgesetz "]
[null,"(§ 9 Betriebsrat, § 10 Betriebsbegehungen, Beauftragte von Sicherheit, Gesundheit und Umweltschutz, § 11 Arbeitsschutzausschuss)"]
["8.4","Teilnahme an sonstigen Besprechungen, einschließlich Betriebsversammlung"]
["8.5","Nutzung eines ständigen Kontaktes mit Führungskräften"]
["8.6","Sitzungen des Arbeitsschutzausschusses"]
[null,"Insbesondere "]
[null,"• ","Vorbereitung"]
[null,"• ","Teilnahme"]
[null,"• ","Auswertungen"]
["9","Selbstorganisation"]
["9.1","Ständige Fortbildung organisieren (Aktualisierung und Erweiterung)"]
["9.2","Wissensmanagement entwickeln und nutzen"]
["9.3","Erfassen und Aufarbeiten von Hinweisen der Beschäftigten"]
["9.4","Erfahrungsaustausch insbesondere mit den Unfallversicherungsträgern und den zuständigen Behörden nutzen"]

{"sheet":"Tabellen","index":3,"n_rows":462,"n_cols":7,"rows_kept":462,"cut":false,"hidden":false,"merged":[]}
[" Lfd. Nr.  "," WZ 2008 Kode  "," WZ 2008 - Bezeichnung (a.n.g. = anderweitig nicht genannt)  "," Gruppe I 2,5 h  "," Gruppe II 1,5 h  "," Gruppe III 0,5 h  ","Gefährdung"]
[1," A  "," ABSCHNITT A - LAND- UND FORSTWIRTSCHAFT, FISCHEREI  ","  ","  ","  "," "]
[64,1.5," Gemischte Landwirtschaft  ",null,"X","  ",{"$f":"IF(D3 > \"       \",\"hoch\",IF(E3 > \"      \",\"mittel\", IF(F3 > \"      \",\"gering\",\" \")))","v":"mittel"}]
[79,2," Forstwirtschaft und Holzeinschlag  ","  ","  ","  ",{"$f":"IF(D4 > \"       \",\"hoch\",IF(E4 > \"      \",\"mittel\", IF(F4 > \"      \",\"gering\",\" \")))","v":" "}]
[80,2.1," Forstwirtschaft  "," X  ","  ","  ","hoch"]
[83,2.2000000000000002," Holzeinschlag  "," X  ","  ","  ","hoch"]
[103," B  "," ABSCHNITT B - BERGBAU UND GEWINNUNG VON STEINEN UND ERDEN  ","  ","  ","  "," "]
[104,5," Kohlenbergbau  ","  ","  ","  "," "]
[105,5.0999999999999996," Steinkohlenbergbau  "," X  ","  ","  ","hoch"]
[108,5.2," Braunkohlenbergbau  "," X  ","  ","  ","hoch"]
[111,6," Gewinnung von Erdöl und Erdgas  ","  ","  ","  "," "]
[112,6.1," Gewinnung von Erdöl  "," X  ","  ","  ","hoch"]
[115,6.2," Gewinnung von Erdgas  "," X  ","  ","  ","hoch"]
[118,5.0999999999999996," Erzbergbau  ","  ","  ","  "," "]
[119,7.1," Eisenerzbergbau  "," X  ","  ","  ","hoch"]
[122,7.2," NE-Metallerzbergbau  "," X  ","  ","  ","hoch"]
[127,6.1," Gewinnung von Steinen und Erden, sonstiger Bergbau  ","  ","  ","  "," "]
[128,8.1," Gewinnung von Natursteinen, Kies, Sand, Ton und Kaolin  ","  ","  ","  "," "]
[129,8.11," Gewinnung von Naturwerksteinen und Natursteinen, Kalk- und Gipsstein, Kreide und Schiefer  "," X  ","  ","  ","hoch"]
[131,8.1199999999999992," Gewinnung von Ton und Kaolin  ","  "," X  ","  ","mittel"]
[133,8.9," Sonstiger Bergbau;  Gewinnung von Steinen und Erden a. n. g."," X  ",null,"  ","hoch"]
[136,6.1," Torfgewinnung  ","  "," X  ","  ","mittel"]
[142,9," Erbringung von Dienstleistungen für den Bergbau und für die Gewinnung von Steinen und Erden  ","  ","  ","  "," "]
[143,9.1," Erbringung von Dienstleistungen für die Gewinnung von Erdöl und Erdgas  "," X  ","  ","  ","hoch"]
[146,9.9," Erbringung von Dienstleistungen für den sonstigen Bergbau und die Gewinnung von Steinen und Erden  "," X  ","  ","  ","hoch"]
[149," C  "," ABSCHNITT C – VERARBEITENDES GEWERBE  ","  ","  ","  "," "]
[150,6.1," Herstellung von Nahrungs- und Futtermitteln  ","  ","  ","  "," "]
[151,10.1," Schlachten und Fleischverarbeitung  "," X  ","  ","  ","hoch"]
[158,10.199999999999999," Fischverarbeitung  ","  "," X  ","  ","mittel"]
[161,10.3," Obst- und Gemüseverarbeitung  ","  "," X  ","  ","mittel"]
[168,10.4," Herstellung von pflanzlichen und tierischen Ölen und Fetten  ","  "," X  ","  ","mittel"]
[173,6.1," Milchverarbeitung  ","  ","  ","  "," "]
[174,10.51," Milchverarbeitung (ohne Herstellung von Speiseeis)  ","  "," X  ","  ","mittel"]
[176,10.52," Herstellung von Speiseeis  ","  "," X  ","  ","mittel"]
[178,10.6," Mahl- und Schälmühlen, Herstellung von Stärke und Stärkeerzeugnissen  ","  "," X  ","  ","mittel"]
[183,10.7," Herstellung von Back- und Teigwaren  ","  "," X  ","  ","mittel"]
[190,6.1," Herstellung von sonstigen Nahrungsmitteln  ","  ","  ","  "," "]
[191,10.81," Herstellung von Zucker  ","  "," X  ","  ","mittel"]
[193,10.82," Herstellung von Süßwaren (ohne Dauerbackwaren)  ","  ","  "," X  ","gering"]
[203,10.89," Herstellung von sonstigen Nahrungsmitteln a. n. g.  ","  "," X  ","  ","mittel"]
[205,10.9," Herstellung von Futtermitteln  ","  "," X  ","  ","mittel"]
[210,6.1," Getränkeherstellung  ","  ","  ","  "," "]
[211,11," Getränkeherstellung  ","  ","  ","  "," "]
["  ","11,01,1  "," Herstellung von Spirituosen  ","  "," X  ","  ","mittel"]
["  ","11,01,2  "," Herstellung von Spirituosen (ohne Brennereien)  ","  ","  "," X  ","gering"]
[214,11.02," Herstellung von Traubenwein  ","  ","  "," X  ","gering"]
[220,6.1," Herstellung von Bier  ","  "," X  ","  ","mittel"]
[222,11.06," Herstellung von Malz  ","  "," X  ","  ","mittel"]
[224,11.07," Herstellung von Erfrischungsgetränken; Gewinnung natürlicher Mineralwässer","  "," X  ",null,"mittel"]
["  ",11.08," Herstellung von sonstigen Getränken a. n. g.  ","  ","  "," X  ","gering"]
[226,12," Tabakverarbeitung  ","  ","  ","  "," "]
[227,6.1," Tabakverarbeitung  ","  ","  "," X  ","gering"]
[230,13," Herstellung von Textilien  ","  ","  ","  "," "]
[231,13.1," Spinnstoffaufbereitung und Spinnerei ","  ","  X  ","  ","mittel"]
[234,13.2," Weberei  ","  "," X  ","  ","mittel"]
[237,13.3," Veredlung von Textilien und Bekleidung  ","  "," X  ","  ","mittel"]
[240,6.1," Herstellung von sonstigen Textilwaren  ","  ","  "," X  ","gering"]
[255,14," Herstellung von Bekleidung  ","  ","  ","  "," "]
[256,14.1," Herstellung von Bekleidung (ohne Pelzbekleidung)  ","  ","  "," X  ","gering"]
[271,14.2," Herstellung von Pelzwaren  ","  ","  "," X  ","gering"]
[274,14.3," Herstellung von Bekleidung aus gewirktem und ge-stricktem Stoff  ","  ","  "," X  ","gering"]
[279,6.1," Herstellung von Leder, Lederwaren und Schuhen  ","  ","  ","  "," "]
[280,15.1," Herstellung von Leder und Lederwaren (ohne Herstellung von Lederbekleidung)  ","  ","  ","  "," "]
[281,15.11," Herstellung von Leder und Lederfaserstoff; Zurichtung und Färben von Fellen  "," "," X  ",null,"mittel"]
[283,15.12," Lederverarbeitung (ohne Herstellung von Lederbekleidung)  ","  ","  "," X  ","gering"]
[285,15.2," Herstellung von Schuhen  ","  ","  "," X  ","gering"]
[288,6.1," Herstellung von Holz-, Flecht-, Korb- und Korkwaren (ohne Möbel)  ","  ","  ","  "," "]
[289,16.100000000000001," Säge-, Hobel- und Holzimprägnierwerke  ","  "," X  ","  ",{"$f":"IF(D68 > \"       \",\"hoch\",IF(E68 > \"      \",\"mittel\", IF(F68 > \"      \",\"gering\",\" \")))","v":"mittel"}]
[292,16.2," Herstellung von sonstigen Holz-, Kork-, Flecht- und Korbwaren (ohne Möbel)  ","  "," X  ","  ","mittel"]
[303,17," Herstellung von Papier, Pappe und Waren daraus  ","  ","  ","  "," "]
[304,17.100000000000001," Herstellung von Holz- und Zellstoff, Papier, Karton und Pappe  ","  "," X  ","  ","mittel"]
[309,6.1," Herstellung von Waren aus Papier, Karton und Pappe  ","  "," X  ","  ","mittel"]
[320,18," Herstellung von Druckerzeugnissen; Vervielfältigung von bespielten Ton-, Bild- und Datenträgern "," ","  ","  "," "]
[321,18.100000000000001," Herstellung von Druckerzeugnissen  ","  ","  ","  "," "]
[322,18.11," Drucken von Zeitungen  ","  "," X  ","  ","mittel"]
[324,18.12," Drucken a. n. g.  ","  "," X  ","  ","mittel"]
[326,6.1," Druck- und Medienvorstufe  ","  ","  "," X  ","gering"]
[328,18.14," Binden von Druckerzeugnissen u. damit verbundene Dienstleistung  ","  "," X  ","  ","mittel"]
[330,18.2," Vervielfältigung von bespielten Ton-, Bild- und Datenträgern  ","  "," X  ","  ","mittel"]
[333,19," Kokerei und Mineralölverarbeitung  ","  ","  ","  "," "]
[334,19.100000000000001," Kokerei  "," X  ","  ","  ","hoch"]
[337,6.1," Mineralölverarbeitung  ","  "," X  ","  ","mittel"]
[340,20," Herstellung von chemischen Erzeugnissen  ","  ","  ","  "," "]
[341,20.100000000000001," Herstellung von chemischen Grundstoffen, Düngemitteln und Stickstoffverbindungen, Kunststoffen in Primärformen und synthetischem Kautschuk in Primärformen  ","  "," X  ","  ","mittel"]
[356,20.2," Herstellung von Schädlingsbekämpfungs-, Pflanzenschutz- und Desinfektionsmitteln  ","  "," X  ","  ","mittel"]
[359,20.3," Herstellung von Anstrichmitteln, Druckfarben und Kitten  ","  "," X  ","  ","mittel"]
[362,6.1," Herstellung von Seifen, Wasch-, Reinigungs- und Körperpflegemitteln sowie von Duftstoffen  ","  "," X  ","  ","mittel"]
[367,20.5," Herstellung von sonstigen chemischen Erzeugnissen  ","  "," X  ","  ","mittel"]
[376,20.6," Herstellung von Chemiefasern  ","  "," X  ","  ","mittel"]
[379,21," Herstellung von pharmazeutischen Erzeugnissen  ","  ","  ","  "," "]
[380,21.1," Herstellung von pharmazeutischen Grundstoffen  ","  "," X  ","  ","mittel"]
[383,6.1," Herstellung von pharmazeutischen Spezialitäten und sonstigen pharmazeutischen Erzeugnissen  ","  "," X  ","  ","mittel"]
[386,22," Herstellung von Gummi- und Kunststoffwaren  ","  ","  ","  "," "]
[387,22.1," Herstellung von Gummiwaren  ","  "," X  ","  ","mittel"]
[392,22.2," Herstellung von Kunststoffwaren  ","  "," X  ","  ","mittel"]
[401,23," Herstellung von Glas und Glaswaren, Keramik, Verarbeitung von Steinen und Erden  ","  ","  ","  "," "]
[402,6.1," Herstellung von Glas und Glaswaren ","  ","  X  ","  ","mittel"]
[413,23.2," Herstellung von feuerfesten keramischen Werkstoffen und Waren  ","  "," X  ","  ","mittel"]
[416,23.3," Herstellung von keramischen Baumaterialien  ","  "," X  ","  ","mittel"]
[421,23.4," Herstellung von sonstigen Porzellan- und keramischen Erzeugnissen  ","  "," X  ","  ","mittel"]
[432,23.5," Herstellung von Zement, Kalk und gebranntem Gips  "," X  ","  ","  ","hoch"]
[437,6.1," Herstellung von Erzeugnissen aus Beton, Zement und Gips  ","  ","  ","  "," "]
[438,23.61," Herstellung von Erzeugnissen aus Kalksandstein für den Bau  ","  "," X  ","  ","mittel"]
[440,23.62," Herstellung von Gipserzeugnissen für den Bau  "," X  ","  ","  ","hoch"]
[442,23.63," Herstellung von Frischbeton (Transportbeton)  "," X  ","  ","  ","hoch"]
[444,23.64," Herstellung von Mörtel und anderem Beton (Trockenbeton)  "," X  ","  ","  ","hoch"]
[446,6.1," Herstellung von Faserzementwaren  "," X  ","  ","  ","hoch"]
[448,23.69," Herstellung von sonstigen Erzeugnissen aus Beton, Zement und Gips a. n. g.  "," X  ","  "," ","hoch"]
[450,23.7," Be- und Verarbeitung von Naturwerksteinen und Natursteinen a. n. g.  ","  ","  "," "," "]
["  ",23.71," Industrielle Be- und Verarbeitung von Naturwerksteinen und Natursteinen  "," X  ","  "," ","hoch"]
["  ",23.72," Steinmetzmäßige Bearbeitung von Naturwerkstein  ","  "," X  "," ","mittel"]
[453,6.1," Herstellung von Schleifkörpern und Schleifmitteln auf Unterlage  ","  "," X  "," ","mittel"]
[456,23.99," Herstellung von sonstigen Erzeugnissen aus nichtmetallischen Mineralien a. n. g.  "," X  ","  "," ","hoch"]
[458,24," Metallerzeugung und -bearbeitung  ","  ","  "," "," "]
[459,24.1," Erzeugung von Roheisen, Stahl und Ferrolegierungen  "," X  ","  "," ","hoch"]
[462,24.2," Herstellung von Stahlrohren, Rohrform-, Rohrverschluss- und Rohrverbindungsstücken aus Stahl  ","  "," X  "," ","mittel"]
[467,6.1," Sonstige erste Bearbeitung von Eisen und Stahl  "," X  ","  "," ","hoch"]
[476,24.4," Erzeugung und erste Bearbeitung von NE-Metallen ","  ","  X  "," ","mittel"]
[489,24.5," Gießereien  "," X  ","  "," ","hoch"]
[498,25," Herstellung von Metallerzeugnissen  ","  ","  "," "," "]
[504,25.2," Herstellung von Metalltanks und -behältern; Herstellung von Heizkörpern und -kesseln für Zentralheizungen","  "," X  ",null,"mittel"]
[512,6.1," Herstellung von Waffen und Munition  ","  "," X  "," ","mittel"]
[515,25.5," Herstellung von Schmiede-, Press-, Zieh- und Stanzteilen, gewalzten Ringen und pulvermetallurgischen Er-zeugnissen  ","  "," X  "," ","mittel"]
[522,25.6," Oberflächenveredlung und Wärmebehandlung; Mechanik a. n. g.","   ","  ","  "," "]
[523,25.61," Oberflächenveredlung und Wärmebehandlung  ","  ","  "," "," "]
["  ","25,61,1  "," Oberflächenveredlung und Wärmebehandlung (ohne Galvanotechnik / elektrochemische Oberflächenbehandlung)  ","  "," X  "," ","mittel"]
["  ",6.1," Oberflächenveredlung und Wärmebehandlung (Galvanotechnik / elektrochemische Oberflächenbehandlung)  "," X  ","  "," ","hoch"]
[525,25.62," Mechanik a. n. g.  ","  "," X  "," ","mittel"]
[527,25.7," Herstellung von Schneidwaren, Werkzeugen, Schlössern und Beschlägen aus unedlen Metallen  ","  "," X  "," ","mittel"]
[538,25.9," Herstellung von sonstigen Metallwaren  ","  "," X  "," ","mittel"]
[551,26," Herstellung von Datenverarbeitungsgeräten, elektronischen und optischen Erzeugnissen  ","  ","  "," "," "]
[552,6.1," Herstellung von elektronischen Bauelementen und Leiterplatten  ","  "," X  "," ",{"$f":"IF(D132 > \"       \",\"hoch\",IF(E132 > \"      \",\"mittel\", IF(F132 > \"      \",\"gering\",\" \")))","v":"mittel"}]
[558,26.2," Herstellung von Datenverarbeitungsgeräten und peripheren Geräten  ","  "," X  "," ","mittel"]
[561,26.3," Herstellung von Geräten und Einrichtungen der Telekommunikationstechnik  ","  "," X  "," ","mittel"]
[564,26.4," Herstellung von Geräten der Unterhaltungselektronik  ","  "," X  "," ","mittel"]
[567,26.5," Herstellung von Mess-, Kontroll-, Navigations- u. ä. Instrumenten und Vorrichtungen; Herstellung von Uhren  "," "," X  ",null,"mittel"]
[574,6.1," Herstellung von Bestrahlungs- und Elektrotherapiegeräten und elektromedizinischen Geräten  ","  "," X  "," ","mittel"]
[577,26.7," Herstellung von optischen und fotografischen Instrumenten und Geräten  ","  "," X  ","  ","mittel"]
[580,26.8," Herstellung von magnetischen und optischen Datenträgern  ","  "," X  ","  ","mittel"]
[583,27," Herstellung von elektrischen Ausrüstungen  ","  ","  ","  "," "]
[584,27.1," Herstellung von Elektromotoren, Generatoren, Transformatoren, Elektrizitätsverteilungs- und -schalteinrichtungen  ","  ","  ","  "," "]
[585,6.1," Herstellung von Elektromotoren, Generatoren und Transformatoren  ","  ","  ","  "," "]
["  ","27,11,1  "," Herstellung von Elektromotoren, Generatoren, Transformatoren (größer 5 kVA)  "," X  ","  ","  ","hoch"]
["  ","27,11,2  "," Herstellung von Elektromotoren, Generatoren, Transformatoren (bis 5 kVA)  ","  "," X  ","  ","mittel"]
[588,27.12," Herstellung von Elektrizitätsverteilungs- und -schalteinrichtungen  ","  "," X  ","  ","mittel"]
[589,27.2," Herstellung von Batterien und Akkumulatoren  ","  "," X  ","  ","mittel"]
[592,6.1," Herstellung von Kabeln und elektrischem Installationsmaterial  ","  "," X  ","  ","mittel"]
[599,27.4," Herstellung von elektrischen Lampen und Leuchten  ","  "," X  ","  ","mittel"]
[602,27.5," Herstellung von Haushaltsgeräten  ","  "," X  ","  ","mittel"]
[607,27.9," Herstellung von sonstigen elektrischen Ausrüstungen und Geräten a. n. g.  ","  "," X  ","  ","mittel"]
[610,28," Maschinenbau  ","  ","  ","  "," "]
[611,6.1," Herstellung von nicht wirtschaftszweigspezifischen Ma-schinen  ","  "," X  ","  ","mittel"]
[622,28.2," Herstellung von sonstigen nicht wirtschaftszweigspezifischen Maschinen  ","  "," X  ","  ","mittel"]
[636,28.3," Herstellung von land- und forstwirtschaftlichen Maschinen  ","  "," X  ","  ","mittel"]
[639,28.4," Herstellung von Werkzeugmaschinen  ","  "," X  ","  ","mittel"]
[647,28.9," Herstellung von Maschinen für sonstige bestimmte Wirtschaftszweige  ","  "," X  ","  ","mittel"]
[663,6.1," Herstellung von Kraftwagen und Kraftwagenteilen  ","  ","  ","  "," "]
[664,29.1," Herstellung von Kraftwagen und Kraftwagenmotoren  ","  ","  "," X  ","gering"]
[668,29.2," Herstellung von Karosserien, Aufbauten und Anhängern ","  ","  X  ","  ","mittel"]
[671,29.3," Herstellung von Teilen und Zubehör für Kraftwagen  ","  "," X  ","  ","mittel"]
[676,30," Sonstiger Fahrzeugbau  ","  ","  ","  "," "]
[677,6.1," Schiff- und Bootsbau  "," X  ","  ","  ","hoch"]
[682,30.2," Schienenfahrzeugbau  ","  ","  ","  "," "]
[684,"30,20,1  "," Herstellung von Lokomotiven und anderen Schienenfahrzeugen  "," X  ","  ","  ","hoch"]
[685,"30,20,2  "," Herstellung von Eisenbahninfrastruktur  ","  "," X  ","  ","mittel"]
[686,30.3," Luft- und Raumfahrzeugbau  ","  "," X  ","  ","mittel"]
[692,6.1," Herstellung von Fahrzeugen a. n. g.  ","  "," X  ","  ","mittel"]
[699,31," Herstellung von Möbeln  ","  ","  ","  "," "]
[700,31," Herstellung von Möbeln  ","  "," X  ","  ","mittel"]
[706,31.03," Herstellung von Matratzen  ","  "," X  ","  ","mittel"]
[708,31.09," Herstellung von sonstigen Möbeln  ","  "," X  ","  ","mittel"]
[711,6.1," Herstellung von sonstigen Waren  ","  ","  ","  "," "]
[712,32.1," Herstellung von Münzen, Schmuck und ähnlichen Erzeugnissen  ","  "," X  "," ","mittel"]
[719,32.200000000000003," Herstellung von Musikinstrumenten  ","  "," X  "," ","mittel"]
[722,32.299999999999997," Herstellung von Sportgeräten  ","  "," X  "," ","mittel"]
[725,31.09," Herstellung von Spielwaren  ","  "," X  "," ","mittel"]
[728,32.5," Herstellung von medizinischen und zahnmedizinischen Apparaten und Materialien  ","  "," X  "," ","mittel"]
[733,32.9," Herstellung von Erzeugnissen a. n. g.  ","  "," X  "," ","mittel"]
[738,33," Reparatur und Installation von Maschinen und Ausrüstungen  ","  ","  "," "," "]
[739,33.1," Reparatur von Metallerzeugnissen, Maschinen und Ausrüstungen  ","  "," X  "," ","mittel"]
[756,33.200000000000003," Installation von Maschinen und Ausrüstungen a. n. g.  ","  "," X  "," ","mittel"]
[759,"D  "," ABSCHNITT D – ENERGIEVERSORGUNG  ","  ","  "," "," "]
[760,35," Energieversorgung  ","  ","  "," "," "]
[761,35.1," Elektrizitätsversorgung  ","  "," X  "," ","mittel"]
[772,35.200000000000003," Gasversorgung  ","  "," X  "," ","mittel"]
[781,35.299999999999997," Wärme-und Kälteversorgung  ","  "," X  "," ","mittel"]
[784," E  "," ABSCHNITT E – WASSERVERSORGUNG; ABWASSER- UND ABFALLENTSORGUNG UND BESEITIGUNG VON UMWELTVERSCHMUTZUNGEN  "," ","  ","  "," "]
[785,36," Wasserversorgung  ","  "," X  "," ","mittel"]
[791,37," Abwasserentsorgung  ","  "," X  "," ","mittel"]
[796,38," Sammlung, Behandlung und Beseitigung von Abfällen; Rückgewinnung"," ","  ","  "," "]
[797,38.1," Sammlung von Abfällen  ","  "," X  "," ","mittel"]
[802,38.21," Abfallbehandlung und -beseitigung  ","  "," X  "," ","mittel"]
[805,38.22," Behandlung und Beseitigung gefährlicher Abfälle  "," X  ","  "," ","hoch"]
[807,38.299999999999997," Rückgewinnung  ","  "," X  "," ","mittel"]
[812,39," Beseitigung von Umweltverschmutzungen und sonstige Entsorgung ","  ","  X  "," ","mittel"]
[816," F  "," ABSCHNITT F - BAUGEWERBE  ","  ","  "," ",{"$f":"IF(D196 > \"       \",\"hoch\",IF(E196 > \"      \",\"mittel\", IF(F196 > \"      \",\"gering\",\" \")))","v":" "}]
[817,41," Hochbau  ","  ","  "," "," "]
[818,41.1," Erschließung von Grundstücken; Bauträger  "," "," X  ",null,"mittel"]
[823,41.2," Bau von Gebäuden  "," X  ","  "," ","hoch"]
[827,42," Tiefbau  ","  ","  "," "," "]
[828,42.1," Bau von Straßen und Bahnverkehrsstrecken  ","  ","  "," "," "]
[829,42.11," Bau von Straßen  ","  "," X  "," ","mittel"]
[831,42.12," Bau von Bahnverkehrsstrecken  "," X  ","  "," ","hoch"]
[833,42.13," Brücken- und Tunnelbau  "," X  ","  "," ","hoch"]
[835,42.2," Leitungstiefbau und Kläranlagenbau  ","  ","  "," "," "]
[836,42.21," Rohrleitungstiefbau, Brunnenbau und Kläranlagenbau  ","  "," X  "," ","mittel"]
[838,42.22," Kabelnetzleitungstiefbau  "," X  ","  "," ","hoch"]
[840,42.9," Sonstiger Tiefbau  ","  "," X  "," ","mittel"]
[845,43," Vorbereitende Baustellenarbeiten, Bauinstallation und sonstiges Ausbaugewerbe  ","  ","  "," "," "]
[846,43.1," Abbrucharbeiten und vorbereitende Baustellenarbeiten  "," X  ","  "," ","hoch"]
[853,43.2," Bauinstallation  ","  ","  "," "," "]
[854,43.21," Elektroinstallation  ","  "," X  "," ","mittel"]
[856,43.22," Gas-, Wasser-, Heizungs- sowie Lüftungs- und Klimainstallation  ","  "," X  ","  ","mittel"]
["  ",43.29," Sonstige Bauinstallation; Elektrotechnische Großinstallation  "," X  ",null,"  ","hoch"]
[861,43.3," Sonstiger Ausbau  ","  "," X  ","  ","mittel"]
[881," G  "," ABSCHNITT G - HANDEL;INSTANDHALTUNG UND REPARATUR VON KRAFTFAHRZEUGEN  "," ","  ","  "," "]
[882,45," Handel mit Kraftfahrzeugen;Instandhaltung und Reparatur von Kraftfahrzeugen  "," ","  ","  "," "]
[883,45.1," Handel mit Kraftwagen  ","  ","  "," X  ","gering"]
[888,45.2," Instandhaltung und Reparatur von Kraftwagen  ","  "," X  ","  ","mittel"]
[894,45.3," Handel mit Kraftwagenteilen und -zubehör  ","  ","  "," X  ","gering"]
[899,45.4," Handel mit Krafträdern, Kraftradteilen und -zubehör; Instandhaltung und Reparatur von Krafträdern"," "," X  ",null,"mittel"]
[902,46," Großhandel (ohne Handel mit Kraftfahrzeugen)  ","  ","  ","  "," "]
[903,46.1," Handelsvermittlung  ","  ","  "," X  ","gering"]
[942,"46,18,6  "," Handelsvermittlung von Karton, Papier und Pappe, Schreibwaren, Bürobedarf, Geschenk- und Werbeartikeln, Verpackungsmitteln und Tapeten  ","  ","  "," X  ","gering"]
[943,"46,18,7  "," Handelsvermittlung von Büchern, Zeitschriften, Zeitungen, Musikalien und sonstigen Druckerzeugnissen  ","  ","  "," X  ","gering"]
[947,46.2," Großhandel mit landwirtschaftlichen Grundstoffen und lebenden Tieren  ","  ","  "," X  ","gering"]
[956,46.3," Großhandel mit Nahrungs- und Genussmitteln, Getränken und Tabakwaren  ","  ","  "," X  ","gering"]
[978,46.4," Großhandel mit Gebrauchs- und Verbrauchsgütern  ","  ","  "," X  ","gering"]
[985,"46,43,1  "," Großhandel mit Foto und optischen Erzeugnissen  ","  ","  "," X  ","gering"]
[1004,"46,49,4  "," Großhandel mit Karton, Papier, Pappe, Schreibwaren, Bürobedarf, Bücher, Zeitschriften und Zeitungen  ","  ","  "," X  ","gering"]
[1006,46.5," Großhandel mit Geräten der Informations- und Kommunikationstechnik  ","  ","  "," X  ","gering"]
[1011,46.6," Großhandel mit sonstigen Maschinen, Ausrüstungen und Zubehör  ","  ","  "," X  ","gering"]
[1028,46.7," Sonstiger Großhandel  ","  ","  ","  "," "]
[1029,46.71," Großhandel mit festen Brennstoffen und Mineralölerzeugnissen  ","  ","  "," X  ","gering"]
[1032,46.72," Großhandel mit Erzen, Metallen und Metallhalbzeug  ","  ","  "," X  ","gering"]
[1035,46.73," Großhandel mit Holz, Baustoffen, Anstrichmitteln und Sanitärkeramik  ","  ","  "," X  ","gering"]
[1044,46.74," Großhandel mit Metall- und Kunststoffwaren für Bauzwecke sowie Installationsbedarf für Gas, Wasser und Heizung  ","  ","  "," X  ","gering"]
[1048,46.75," Großhandel mit chemischen Erzeugnissen  ","  ","  "," X  ","gering"]
[1050,46.76," Großhandel mit sonstigen Halbwaren  ","  ","  "," X  ","gering"]
[1052,46.77," Großhandel mit Altmaterialien und Reststoffen  ","  "," X  ","  ","mittel"]
[1054,46.9," Großhandel ohne ausgeprägten Schwerpunkt  ","  ","  "," X  ","gering"]
[1059,47," Einzelhandel (ohne Handel mit Kraftfahrzeugen)  ","  ","  ","  "," "]
[1060,47.1," Einzelhandel mit Waren verschiedener Art (in Verkaufsräumen)  ","  ","  "," X  ","gering"]
[1067,47.2," Einzelhandel mit Nahrungs- und Genussmitteln, Getränken und Tabakwar Verkaufsräum  ","  ","  "," X  ","gering"]
[1082,47.3," Einzelhandel mit Motorenkraftstoffen (Tankstellen)  ","  ","  "," X  ","gering"]
[1086,47.4," Einzelhandel mit Geräten der Informations- und Kommunikationstechnik (in Verkaufsräumen)  ","  ","  "," X  ","gering"]
[1093,47.5," Einzelhandel mit sonstigen Haushaltsgeräten, Textilien, Heimwerker- und Einrichtungsbedarf (in Verkaufsräumen)  ","  ","  "," X  ","gering"]
[1108,47.6," Einzelhandel mit Verlagsprodukten, Sportausrüstungen und Spielwaren (in Verkaufsräumen)  ","  ","  "," X  ","gering"]
[1121,47.7," Einzelhandel mit sonstigen Gütern (in Verkaufsräumen)  ","  ","  "," X  ","gering"]
[1127,47.73," Apotheken  ","  ","  "," X  ","gering"]
[1147,47.8," Einzelhandel an Verkaufsständen und auf Märkten  ","  ","  "," X  ","gering"]
[1154,47.9," Einzelhandel, nicht in Verkaufsräumen, an Verkaufsständen oder auf Märkten  ","  ","  "," X  ","gering"]
[1161," H  "," ABSCHNITT H – VERKEHR UND LAGEREI  ","  ","  ","  "," "]
[1162,49," Landverkehr und Transport in Rohrfernleitungen  ","  ","  ","  "," "]
[1163,49.1," Personenbeförderung im Eisenbahnfernverkehr  ","  ","  "," X  ","gering"]
[1166,49.2," Güterbeförderung im Eisenbahnverkehr  ","  "," X  ","  ","mittel"]
[1169,49.3," Sonstige Personenbeförderung im Landverkehr  ","  ","  "," X  ","gering"]
[1178,49.4," Güterbeförderung im Straßenverkehr, Umzugstransporte  ","  "," X  ","  ","mittel"]
[1183,49.5," Transport in Rohrfernleitungen  ","  "," X  ","  ","mittel"]
[1186,50," Schifffahrt  ","  ","  ","  ",{"$f":"IF(D260 > \"       \",\"hoch\",IF(E260 > \"      \",\"mittel\", IF(F260 > \"      \",\"gering\",\" \")))","v":" "}]
[1187,50.1," Personenbeförderung in der See- und Küstenschifffahrt  ","  "," X  ","  ","mittel"]
[1190,50.2," Güterbeförderung in der See- und Küstenschifffahrt  ","  "," X  ","  ","mittel"]
[1193,50.3," Personenbeförderung in der Binnenschifffahrt ","  ","  X  ","  ","mittel"]
[1196,50.4," Güterbeförderung in der Binnenschifffahrt ","  ","  X  ","  ","mittel"]
[1199,51," Luftfahrt  ","  ","  ","  "," "]
[1200,51.1," Personenbeförderung in der Luftfahrt  ","  ","  "," X  ","gering"]
[1203,51.2," Güterbeförderung in der Luftfahrt und Raumtransport  ","  ","  "," X  ","gering"]
[1208,52," Lagerei sowie Erbringung von sonstigen Dienstleistungen für den Verkehr  ","  ","  ","  "," "]
[1209,52.1," Lagerei  ","  "," X  ","  ","mittel"]
[1212,52.2," Erbringung von sonstigen Dienstleistungen für den Verkehr  ","  "," X  ","  ","mittel"]
[1215,"52,21,2  "," Betrieb von Verkehrswegen für Straßenfahrzeuge ","  ","  X  ","  ","mittel"]
[1221,"52,22,1  "," Betrieb von Wasserstraßen  ","  "," X  ","  ","mittel"]
[1222,"52,22,2  "," Betrieb von Häfen  ","  "," X  ","  ","mittel"]
[1225,52.23," Erbringung von sonstigen Dienstleistungen für die Luftfahrt  ","  "," X  ","  ","mittel"]
[1234,53," Post-, Kurier- und Expressdienste  ","  ","  ","  "," "]
[1235,53.1," Postdienste von Universaldienstleistungsanbietern  ","  "," X  ","  ","mittel"]
[1238,53.2," Sonstige Post-, Kurier- und Expressdienste  ","  "," X  ","  ","mittel"]
[1241," I  "," ABSCHNITT I – GASTGEWERBE  ","  ","  ","  "," "]
[1242,55," Beherbergung  ","  ","  ","  "," "]
[1243,55.1," Hotels, Gasthöfe und Pensionen  ","  "," X  ","  ","mittel"]
[1249,55.2," Ferienunterkünfte und ähnliche Beherbergungsstätten  ","  ","  "," X  ","gering"]
[1255,55.3," Campingplätze  ","  ","  "," X  ","gering"]
[1262,56," Gastronomie  ","  ","  ","  "," "]
[1263,56.1," Restaurants, Gaststätten, Imbissstuben, Cafés, Eissalons u. Ä.  ","  ","  "," X  ","gering"]
[1270,56.2," Caterer und Erbringung sonstiger Verpflegungsdienstleistungen  ","  ","  "," X  ","gering"]
[1282," J  "," ABSCHNITT J – INFORMATION UND KOMMUNIKATION  ","  ","  ","  "," "]
[1283,58," Verlagswesen  ","  ","  ","  "," "]
[1284,58.1," Verlegen von Büchern und Zeitschriften;sonstiges Verlagswesen (ohne Software) ","  ","  "," X  ","gering"]
[1289,58.13," Verlegen von Zeitungen  ","  ","  "," X  ","gering"]
[1295,58.2," Verlegen von Software  ","  ","  "," X  ","gering"]
[1300,59," Herstellung, Verleih und Vertrieb von Filmen und Fernsehprogrammen Verlegen von Software; Kinos; Tonstudios und Verlegen von Musik  "," "," ","  "," "]
[1301,59.1," Herstellung von Filmen und Fernsehprogrammen, deren Verleih und Vertrieb; Kinos  "," ","  "," X  ","gering"]
[1310,59.2," Tonstudios; Herstellung von Hörfunkbeiträgen; Verlegen von bespielten Tonträgern und Musikalien"," ","   "," X  ","gering"]
[1315,60," Rundfunkveranstalter  ","  ","  ","  "," "]
[1316,60.1," Hörfunkveranstalter  ","  ","  "," X  ","gering"]
[1319,60.2," Fernsehveranstalter  ","  ","  "," X  ","gering"]
[1322,61," Telekommunikation  ","  ","  ","  "," "]
[1323,61.1," Leitungsgebundene Telekommunikation  ","  "," X  ","  ","mittel"]
[1326,61.2," Drahtlose Telekommunikation  ","  "," X  ","  ","mittel"]
[1329,61.3," Satellitentelekommunikation  ","  "," X  ","  ","mittel"]
[1332,61.9," Sonstige Telekommunikation  ","  "," X  ","  ","mittel"]
[1336,62," Erbringung von Dienstleistungen der Informationstechnologie  ","  ","  "," X  ","gering"]
[1347,63," Informationsdienstleistungen  ","  ","  ","  "," "]
[1348,63.1," Datenverarbeitung, Hosting und damit verbundene Tätigkeiten; Webportale "," ","  "," X  ","gering"]
[1353,63.9," Erbringung von sonstigen Informationsdienstleistungen  ","  ","  "," X  ","gering"]
[1358," K  "," ABSCHNITT K – ERBRINGUNG VON FINANZ- UND VERSICHERUNGSDIENSTLEISTUNGEN  ","  ","  ","  "," "]
[1359,64," Erbringung von Finanzdienstleistungen  ","  ","  ","  "," "]
[1360,64.099999999999994," Zentralbanken und Kreditinstitute  ","  ","  "," X  ","gering"]
[1370,64.2," Beteiligungsgesellschaften  ","  ","  "," X  ","gering"]
[1373,64.3," Treuhand- und sonstige Fonds und ähnliche Finanzinstitutionen  ","  ","  "," X  ","gering"]
[1376,64.900000000000006," Sonstige Finanzierungsinstitutionen  ","  ","  "," X  ","gering"]
[1385,65," Versicherungen, Rückversicherungen und Pensionskassen (ohne Sozialversicherung)  ","  ","  ","  "," "]
[1386,65.099999999999994," Versicherungen  ","  ","  "," X  ","gering"]
[1390,"65,12,1  "," Krankenversicherungen (Betriebskrankenkassen)  ","  ","  "," X  ","gering"]
[1392,65.2," Rückversicherungen  ","  ","  "," X  ","gering"]
[1395,65.3," Pensionskassen und Pensionsfonds  ","  ","  "," X  ","gering"]
[1398,66," Mit Finanz- und Versicherungsdienstleistungen verbundene Tätigkeiten  ","  ","  ","  "," "]
[1399,66.099999999999994," Mit Finanzdienstleistungen verbundene Tätigkeiten  ","  ","  "," X  ","gering"]
[1406,66.2," Mit Versicherungsdienstleistungen und Pensionskassen verbundene Tätigkeiten  ","  ","  "," X  ","gering"]
[1413,66.3," Fondsmanagement  ","  ","  "," X  ","gering"]
[1416," L  "," ABSCHNITT L – GRUNDSTÜCKS- UND WOHNUNGSWESEN  ","  ","  ","  "," "]
[1417,68," Grundstücks- und Wohnungswesen  ","  ","  ","  "," "]
[1418,68.099999999999994," Kauf und Verkauf von eigenen Grundstücken, Gebäuden und Wohnungen  ","  ","  "," X  ","gering"]
[1422,68.2," Vermietung, Verpachtung von eigenen oder geleasten Grundstücken, Gebäuden und Wohnungen  ","  ","  "," X  ",{"$f":"IF(D324 > \"       \",\"hoch\",IF(E324 > \"      \",\"mittel\", IF(F324 > \"      \",\"gering\",\" \")))","v":"gering"}]
[1426,68.3," Vermittlung und Verwaltung von Grundstücken, Gebäuden und Wohnungen für Dritte  ","  ","  "," X  ","gering"]
[1433," M  "," ABSCHNITT M – ERBRINGUNG VON FREIBERUFLICHEN, WISSENSCHAFTLICHEN UND TECHNISCHEN DIENSTLEISTUNGEN  ","  ","  ","  "," "]
[1434,69," Rechts- und Steuerberatung, Wirtschaftsprüfung  ","  ","  ","  "," "]
[1435,69.099999999999994," Rechtsberatung  ","  ","  "," X  ","gering"]
[1442,69.2," Wirtschaftsprüfung und Steuerberatung; Buchführung  ",null,"  "," X  ","gering"]
[1448,70," Verwaltung und Führung von Unternehmen und Betrieben; Unternehmensberatung  "," ","  ","  "," "]
[1449,70.099999999999994," Verwaltung und Führung von Unternehmen und Betrieben  ","  ","  "," X  ","gering"]
[1453,70.2," Public-Relations- und Unternehmensberatung  ","  ","  "," X  ","gering"]
[1458,71," Architektur- und Ingenieurbüros; technische, physikalische und chemische Untersuchung  "," ","  ","  "," "]
[1459,71.099999999999994," Architektur- und Ingenieurbüros  ","  ","  "," X  ","gering"]
[1470,71.2," Technische, physikalische und chemische Untersuchung  ","  ","  "," X  ","gering"]
[1473,72," Forschung und Entwicklung  ","  ","  ","  "," "]
[1474,72.099999999999994," Forschung und Entwicklung im Bereich Natur-, Ingenieur-, Agrarwissenschaften und Medizin  ","  "," X  ","  ","mittel"]
[1477,72.19," Sonstige Forschung und Entwicklung im Bereich Natur-, Ingenieur-, Agrarwissenschaften und Medizin  ","  "," X  ","  ","mittel"]
[1479,72.2," Forschung und Entwicklung im Bereich Rechts-, Wirtschafts- und Sozialwissenschaften sowie im Bereich Sprach-, Kultur- und Kunstwissenschaften  ","  ","  "," X  ","gering"]
[1482,73," Werbung und Marktforschung  ","  ","  ","  "," "]
[1483,73.099999999999994," Werbung  ","  ","  "," X  ","gering"]
[1488,73.2," Markt- und Meinungsforschung  ","  ","  "," X  ","gering"]
[1491,74," Sonstige freiberufliche, wissenschaftliche und technische Tätigkeiten  ","  ","  ","  "," "]
[1492,74.099999999999994," Ateliers für Textil-, Schmuck-, Grafik- u. ä. Design  ","  ","  "," X  ","gering"]
[1497,74.2," Fotografie und Fotolabors  ","  ","  "," X  ","gering"]
[1501,74.3," Übersetzen und Dolmetschen  ","  ","  "," X  ","gering"]
[1505,74.900000000000006," Sonstige freiberufliche, wissenschaftliche und technische Tätigkeiten a. n. g.  ","  ","  "," X  ","gering"]
[1508,75," Veterinärwesen  ","  ","  "," X  ","gering"]
[1513," N  "," ABSCHNITT N – ERBRINGUNG VON SONSTIGEN WIRTSCHAFTLICHEN DIENSTLEISTUNGEN  ","  ","  ","  "," "]
[1514,77," Vermietung von beweglichen Sachen  ","  ","  ","  "," "]
[1515,77.099999999999994," Vermietung von Kraftwagen  ","  ","  "," X  ","gering"]
[1520,77.2," Vermietung von Gebrauchsgütern  ","  ","  "," X  ","gering"]
[1527,77.3," Vermietung von Maschinen, Geräten und sonstigen beweglichen Sachen  ","  ","  "," X  ","gering"]
[1540,77.400000000000006," Leasing von nichtfinanziellen immateriellen Vermögensgegenständen (ohne Copyrights)  ","  ","  "," X  ","gering"]
[1543,78," Vermittlung und Überlassung von Arbeitskräften  ","  ","  ","  "," "]
[1544,78.099999999999994," Vermittlung von Arbeitskräften  ","  "," X  ","  ","mittel"]
[1547,78.2," Befristete Überlassung von Arbeitskräften (gewerblich)  ","  "," X  ","  ","mittel"]
[1550,78.3," Befristete Überlassung von Arbeitskräften (kaufm.-verw.)  ","  ","  "," X  ","gering"]
[1553,79," Reisebüros, Reiseveranstalter und Erbringung sonstiger Reservierungsdienstleistungen  ","  ","  ","  "," "]
[1554,79.099999999999994," Reisebüros und Reiseveranstalter  ","  ","  "," X  ","gering"]
[1559,79.900000000000006," Erbringung sonstiger Reservierungsdienstleistungen  ","  ","  "," X  ","gering"]
[1562,80," Wach- und Sicherheitsdienste sowie Detekteien  ","  ","  ","  "," "]
[1563,80.099999999999994," Private Wach- und Sicherheitsdienste  ","  ","  "," X  ","gering"]
[1566,80.2," Sicherheitsdienste mithilfe von Überwachungs- und Alarmsystemen  ","  ","  "," X  ","gering"]
[1569,80.3," Detekteien  ","  ","  "," X  ","gering"]
[1572,81," Gebäudebetreuung; Garten- und Landschaftsbau  "," ","  ","  "," "]
[1573,81.099999999999994," Hausmeisterdienste  ","  ","  "," X  ","gering"]
[1576,81.209999999999994," Allgemeine Gebäudereinigung  ","  ","  "," X  ","gering"]
[1583,"81,29,1  "," Reinigung von Verkehrsmitteln  ","  "," X  ","  ","mittel"]
[1584,"81,29,2  "," Desinfektion und Schädlingsbekämpfung  ","  "," X  ","  ","mittel"]
[1585,"81,29,9  "," Sonstige Reinigung a. n. g.  ","  "," X  ","  ","mittel"]
[1590,82," Erbringung von wirtschaftlichen Dienstleistungen für Unternehmen und Privatpersonen a. n. g.  ","  ","  ","  "," "]
[1591,82.1," Sekretariats- und Schreibdienste, Copy-Shops  ","  ","  "," X  ","gering"]
[1596,82.2," Call Center  ","  ","  "," X  ","gering"]
[1599,82.3," Messe-, Ausstellungs- und Kongressveranstalter  ","  ","  "," X  ","gering"]
[1602,82.9," Erbringung sonstiger wirtschaftlicher Dienstleistungen für Unternehmen und Privatpersonen  ","  ","  ","  "," "]
[1603,82.91," Inkassobüros und Auskunfteien  ","  ","  "," X  ","gering"]
[1606,82.92," Abfüllen und Verpacken  ","  "," X  ","  ","mittel"]
[1608,82.99," Erbringung sonstiger wirtschaftlicher Dienstleistungen für Unternehmen und Privatpersonen a. n. g.  ","  ","  "," X  ","gering"]
[1611," O  "," ABSCHNITT O – ÖFFENTLICHE VERWALTUNG, VERTEIDIGUNG; SOZIALVERSICHERUNG  "," ","  ","  "," "]
[1612,84," Öffentliche Verwaltung, Verteidigung; Sozialversicherung ","  ","  ","  "," "]
[1613,84.1," Öffentliche Verwaltung  ","  ","  "," X  ","gering"]
[1620,84.2," Auswärtige Angelegenheiten, Verteidigung, Rechtspflege, öffentliche Sicherheit und Ordnung  ","  "," X  ","  ","mittel"]
[1631,84.3," Sozialversicherung  ","  ","  "," X  ","gering"]
[1634," P  "," ABSCHNITT P – ERZIEHUNG UND UNTERRICHT  ","  ","  ","  "," "]
[1635,85," Erziehung und Unterricht  ","  ","  ","  "," "]
[1636,85.1," Kindergärten und Vorschulen  ","  ","  "," X  ","gering"]
[1640,85.2," Grundschulen  ","  ","  "," X  ",{"$f":"IF(D388 > \"       \",\"hoch\",IF(E388 > \"      \",\"mittel\", IF(F388 > \"      \",\"gering\",\" \")))","v":"gering"}]
[1643,85.3," Weiterführende Schulen  ","  ","  "," X  ","gering"]
[1645,"85,31,1  "," Allgemein bildende weiterführende Schulen Sekundarbereich I  ","  ","  "," X  ","gering"]
[1646,"85,31,2  "," Allgemein bildende weiterführende Schulen Sekundarbereich II  ","  ","  "," X  ","gering"]
[1647,85.32," Berufsbildende weiterführende Schulen  ","  ","  "," X  ","gering"]
[1649,85.4," Tertiärer und post-sekundärer, nicht tertiärer Unterricht  ","  ","  "," X  ","gering"]
[1657,85.5," Sonstiger Unterricht  ","  ","  "," X  ","gering"]
[1668,85.6," Erbringung von Dienstleistungen für den Unterricht  ","  ","  "," X  ","gering"]
[1671," Q  "," ABSCHNITT Q – GESUNDHEITS- UND SOZIALWESEN  ","  ","  ","  "," "]
[1672,86," Gesundheitswesen  ","  ","  ","  "," "]
[1673,86.1," Krankenhäuser  ","  ","  ","  "," "]
[1675,"86,10,1  "," Krankenhäuser (ohne Hochschulkliniken, Vorsorge- und Rehabilitationskliniken)  ","  "," X  ","  ","mittel"]
[1676,"86,10,2  "," Hochschulkliniken  ","  "," X  ","  ","mittel"]
[1677,"86,10,3  "," Vorsorge- und Rehabilitationskliniken  ","  ","  "," X  ","gering"]
[1678,86.2," Arzt- und Zahnarztpraxen  ","  ","  "," X  ","gering"]
[1679,86.21," Arztpraxen für Allgemeinmedizin  ","  ","  "," X  ","gering"]
[1681,86.22," Facharztpraxen  ","  ","  "," X  ","gering"]
[1683,86.23," Zahnarztpraxen  ","  ","  "," X  ","gering"]
[1685,86.9," Gesundheitswesen a. n. g.  ","  ","  "," X  ","gering"]
[1691,87," Heime (ohne Erholungs- und Ferienheime)  ","  ","  ","  "," "]
[1692,87.1," Pflegeheime  ","  ","  "," X  ","gering"]
[1695,87.2," Stationäre Einrichtungen zur psychosozialen Betreuung, Suchtbekämpfung u. Ä.  ","  ","  "," X  ","gering"]
[1698,87.3," Altenheime; Alten- und Behindertenwohnheime","   ","  "," X  ","gering"]
[1701,87.9," Sonstige Heime (ohne Erholungs- und Ferienheime)  ","  ","  "," X  ","gering"]
[1704,88," Sozialwesen (ohne Heime)  ","  ","  ","  "," "]
[1705,88.1," Soziale Betreuung älterer Menschen und Behinderter  ","  ","  ","  "," "]
[1707," 88,10,1  "," Ambulante soziale Dienste  ","  ","  "," X  ","gering"]
[1708," 88,10,2  "," Sonstige soziale Betreuung älterer Menschen und Be-hinderter  ","  "," X  ","  ","mittel"]
[1709,88.9," Sonstiges Sozialwesen (ohne Heime)  ","  ","  "," X  ","gering"]
[1710,88.91," Tagesbetreuung von Kindern  ","  ","  "," X  ","gering"]
[1712,88.99," Sonstiges Sozialwesen a. n. g.  ","  ","  "," X  ","gering"]
[1714," R  "," ABSCHNITT R – KUNST, UNTERHALTUNG UND ERHOLUNG  ","  ","  ","  "," "]
[1715,90," Kreative, künstlerische und unterhaltende Tätigkeiten  ","  ","  ","  "," "]
[1716,90," Kreative, künstlerische und unterhaltende Tätigkeiten  ","  ","  ","  "," "]
[1717,90.01," Darstellende Kunst  ","  ","  "," X  ","gering"]
[1722,90.02," Erbringung von Dienstleistungen für die darstellende Kunst  ","  "," X  ","  ","mittel"]
[1724,90.03," Künstlerisches und Schriftstellerisches Schaffen (Journalisten, Pressefotografen)  ","  ","  "," X  ","gering"]
[1730,90.04," Betrieb von Kultur- und Unterhaltungseinrichtungen  ","  "," X  ","  ","mittel"]
[1734,91," Bibliotheken, Archive, Museen, botanische und zoologische Gärten  ","  ","  ","  "," "]
[1735,91," Bibliotheken, Archive, Museen, botanische und zoologische Gärten  ","  ","  ","  "," "]
[1736,91.01," Bibliotheken und Archive  ","  ","  "," X  ","gering"]
[1738,91.02," Museen  ","  ","  "," X  ","gering"]
[1740,91.03," Betrieb von historischen Stätten und Gebäuden und ähnlichen Attraktionen  ","  ","  "," X  ","gering"]
[1742,91.04," Botanische und zoologische Gärten sowie Naturparks  ","  "," X  ","  ","mittel"]
[1744,92," Spiel-, Wett- und Lotteriewesen  ","  ","  "," X  ","gering"]
[1750,93," Erbringung von Dienstleistungen des Sports, der Unterhaltung und der Erholung  ","  ","  ","  "," "]
[1751,93.1," Erbringung von Dienstleistungen des Sports  ","  ","  "," X  ","gering"]
[1752,93.11," Betrieb von Sportanlagen  ","  ","  "," X  ","gering"]
[1760,93.2," Erbringung von sonstigen Dienstleistungen der Unterhaltung und der Erholung  ","  ","  ","  "," "]
[1761,93.21," Vergnügungs- und Themenparks  ","  ","  "," X  ","gering"]
[1763,93.29," Erbringung von Dienstleistungen der Unterhaltung und der Erholung a. n. g.  ","  "," X  ","  ","mittel"]
[1765," S  "," ABSCHNITT S – ERBRINGUNG VON SONSTIGEN DIENSTLEISTUNGEN  ","  ","  ","  "," "]
[1766,94," Interessenvertretungen sowie kirchliche und sonstige religiöse Vereinigungen (ohne Sozialwesen und Sport)  ","  ","  ","  "," "]
[1767,94.1," Wirtschafts- und Arbeitgeberverbände, Berufsorganisationen  ","  ","  "," X  ","gering"]
[1772,94.2," Arbeitnehmervereinigungen  ","  ","  "," X  ","gering"]
[1775,94.9," Kirchliche Vereinigungen; politische Parteien sowie sonstige Interessenvertretungen und Vereinigungen a. n. g.  "," ","  "," X  ","gering"]
[1780,94.99," Sonstige Interessenvertretungen und Vereinigungen a. n. g.  ","  ","  "," X  ","gering"]
[1786,95," Reparatur von Datenverarbeitungsgeräten und Gebrauchsgütern  ","  ","  ","  "," "]
[1787,95.1," Reparatur von Datenverarbeitungs- und Telekommunikationsgeräten  ","  "," X  ","  ","mittel"]
[1792,95.2," Reparatur von Gebrauchsgütern  ","  ","  ","  "," "]
[1793,95.21," Reparatur von Geräten der Unterhaltungselektronik  ","  "," X  ","  ","mittel"]
[1795,95.22," Reparatur von elektrischen Haushaltsgeräten und Gartengeräten  ","  "," X  ","  ","mittel"]
[1797,95.23," Reparatur von Schuhen und Lederwaren  ","  ","  "," X  ","gering"]
[1801,95.25," Reparatur von Uhren und Schmuck  ","  ","  "," X  ","gering"]
[1805,96," Erbringung von sonstigen überwiegend persönlichen Dienstleistungen  ","  ","  ","  ",{"$f":"IF(D452 > \"       \",\"hoch\",IF(E452 > \"      \",\"mittel\", IF(F452 > \"      \",\"gering\",\" \")))","v":" "}]
[1806,96," Erbringung von sonstigen überwiegend persönlichen Dienstleistungen  ","  ","  ","  "," "]
[1807,96.01," Wäscherei und chemische Reinigung  ","  ","  "," X  ","gering"]
[1809,96.02," Frisör- und Kosmetiksalons  ","  ","  "," X  ","gering"]
[1812,96.03," Bestattungswesen  ","  ","  "," X  ","gering"]
[1815,96.04," Saunas, Solarien, Bäder u. Ä.  ","  ","  "," X  ","gering"]
[1817,96.09," Erbringung von sonstigen Dienstleistungen a. n. g.  ","  ","  "," X  ","gering"]
[9900,99," Erbringung von sonstigen überwiegend persönlichen Dienstleistungen  ","  ","  ","  ",{"$f":"IF(D459 > \"       \",\"hoch\",IF(E459 > \"      \",\"mittel\", IF(F459 > \"      \",\"gering\",\" \")))","v":" "}]
[9901,99.01,"hohe Gefährdung gem. Aussage UV-Träger","X","  ",null,{"$f":"IF(D460 > \"       \",\"hoch\",IF(E460 > \"      \",\"mittel\", IF(F460 > \"      \",\"gering\",\" \")))","v":"hoch"}]
[9902,99.02,"mittlere Gefährdung gem. Aussage UV-Träger","  ","X",null,{"$f":"IF(D461 > \"       \",\"hoch\",IF(E461 > \"      \",\"mittel\", IF(F461 > \"      \",\"gering\",\" \")))","v":"mittel"}]
[9903,99.03,"geringe Gefährdung gem. Aussage UV-Träger","  ","  "," X  ",{"$f":"IF(D462 > \"       \",\"hoch\",IF(E462 > \"      \",\"mittel\", IF(F462 > \"      \",\"gering\",\" \")))","v":"gering"}]